﻿Body Name,Body,Service Division Label,Service Division Code,Organisational Unit,Expenditure Category,Expenditure Code,CIPFA detailed expediture type,CIPFA detailed expediture code,Narrative,Date,Transaction number,Net Amount,Capital and Revenue,Supplier Name,Supplier ID,,
Chorley Borough Council,http://statistics.data.gov.uk/id/local-authority/30UE,Parking Services,1066,GROW - Commercial & Property,External Contractor,40198,Miscellaneous Expenses,5034,"As per quote NUMBER REDACTED, lining works in various locations in Chorley (Flat Iron car park/Fleet St car park/Portland St car ",11/01/2023,0174552,"£2,998.67",Revenue,A1 Streamline Road Markings LTD,21544,,
Chorley Borough Council,http://statistics.data.gov.uk/id/local-authority/30UE,Central Support Services,1009,GROW - Commercial & Property,General Repairs - Reactive,20004,Repairs Maintenance & Alts,5005,Additional works at Byron Street,11/01/2023,0174552,£347.47,Revenue,A1 Streamline Road Markings LTD,21544,,
Chorley Borough Council,http://statistics.data.gov.uk/id/local-authority/30UE,Parking Services,1066,GROW - Commercial & Property,External Contractor,40198,Miscellaneous Expenses,5034,Variations on the car parks (Flat Iron near M & S),11/01/2023,0174552,£43.25,Revenue,A1 Streamline Road Markings LTD,21544,,
Chorley Borough Council,http://statistics.data.gov.uk/id/local-authority/30UE,Control Accounts,Control,GROW - Commercial & Property,Manual Control Account,00001,Balance Sheet,Balance,,25/01/2023,0175412,£312.00,Revenue,Active Pathways Ltd,87090,,
Chorley Borough Council,http://statistics.data.gov.uk/id/local-authority/30UE,Central Support Services,1009,CUST - Customer & Digital,Telephones - Other,40085,Communication and Computing,5028,Adept Telecom - October 22,18/01/2023,0175080,"£1,810.43",Revenue,Adept Telecom PLC,77452,,
Chorley Borough Council,http://statistics.data.gov.uk/id/local-authority/30UE,Service Management & Support,1009,CUST - Customer & Digital,Vehicles and Plant Maintenance,30045,Direct Transport Costs,5016,As per Quotation NUMBER REDACTED/ 14.12.2022,11/01/2023,0175101,£259.35,Revenue,Aebi Schmidt UK Ltd,17287,,
Chorley Borough Council,http://statistics.data.gov.uk/id/local-authority/30UE,Community Development,1097,EARL - Communities,Core Funding Grants,40133,Grants and Subscriptions,5031,2rd Payment for delivery of commissioned service,18/01/2023,0175391,"£5,000.00",Revenue,Age UK,21252,,
Chorley Borough Council,http://statistics.data.gov.uk/id/local-authority/30UE,Central Support Services,1009,EARL - Communities,External Contractor,40198,Miscellaneous Expenses,5034,Domestic pest control service delivery,11/01/2023,0170766,"£1,361.83",Revenue,ALPHA PEST CONTROL LIMITED,18208,,
Chorley Borough Council,http://statistics.data.gov.uk/id/local-authority/30UE,Central Support Services,1009,EARL - Communities,External Contractor,40198,Miscellaneous Expenses,5034,Domestic pest control service delivery,11/01/2023,0171162,£438.59,Revenue,ALPHA PEST CONTROL LIMITED,18208,,
Chorley Borough Council,http://statistics.data.gov.uk/id/local-authority/30UE,Central Support Services,1009,EARL - Communities,External Contractor,40198,Miscellaneous Expenses,5034,Domestic pest control service delivery,11/01/2023,0171205,"£1,803.45",Revenue,ALPHA PEST CONTROL LIMITED,18208,,
Chorley Borough Council,http://statistics.data.gov.uk/id/local-authority/30UE,Central Support Services,1009,EARL - Communities,External Contractor,40198,Miscellaneous Expenses,5034,Domestic pest control service delivery,11/01/2023,0172797,£395.06,Revenue,ALPHA PEST CONTROL LIMITED,18208,,
Chorley Borough Council,http://statistics.data.gov.uk/id/local-authority/30UE,Central Support Services,1009,EARL - Communities,External Contractor,40198,Miscellaneous Expenses,5034,Domestic pest control service delivery,11/01/2023,0173732,"£1,577.83",Revenue,ALPHA PEST CONTROL LIMITED,18208,,
Chorley Borough Council,http://statistics.data.gov.uk/id/local-authority/30UE,Central Support Services,1009,CUST - Customer & Digital,Computer Software-Additional,40102,Communication and Computing,5028,Amazon AWS web services - NUMBER REDACTED Cloud charges December 2022,04/01/2023,0174463,"£5,997.37",Revenue,Amazon Web Services EMEA SARL,80604,,
Chorley Borough Council,http://statistics.data.gov.uk/id/local-authority/30UE,Tourism,1039,GOVN - Policy & Governance,Misc Expenses,40200,Miscellaneous Expenses,5034,"Santa for Chorley Santa Experience 9am - 5pm 26 & 27 November, 3, 4, 10, 11, 17 & 18 December 2022",11/01/2023,0175027,"£1,200.00",Revenue,Andrea Price Management,76897,,
Chorley Borough Council,http://statistics.data.gov.uk/id/local-authority/30UE,Central Support Services,1009,EARL - Communities,Impounded Dogs Costs,40207,Miscellaneous Expenses,5034,Stray Dog - Retainer,25/01/2023,0175452,£595.20,Revenue,Animal Wardens Ltd,80965,,
Chorley Borough Council,http://statistics.data.gov.uk/id/local-authority/30UE,Central Support Services,1009,GOVN - Policy & Governance,Misc Expenses,40200,Miscellaneous Expenses,5034,December`s website hosting (WordPress websites),18/01/2023,0175248,£297.55,Revenue,ANS Group Limited,74638,,
Chorley Borough Council,http://statistics.data.gov.uk/id/local-authority/30UE,Capital,Capital,GROW - Commercial & Property,Consultants Fees,03025,Capital Expenditure,Capital,Alker Lane / Strawberry Meadows Business Park - Roof Consultancy Services,11/01/2023,0175016,"£3,060.00",Capital,AP WILLIAMSON CONSULTANTS LTD,85472,,
Chorley Borough Council,http://statistics.data.gov.uk/id/local-authority/30UE,Service Management & Support,1009,CUST - Customer & Digital,Protective Clothing,40040,"Clothing, Uniforms and Laundry",5025,"Quantity x 10 Lightweight Safety Helmet for basic general use, complete with chin strap, manufactured from UV stabilised high den",25/01/2023,0175159,£418.20,Revenue,Arco Limited,17458,,
Chorley Borough Council,http://statistics.data.gov.uk/id/local-authority/30UE,Control Accounts,Control,GOVN - Policy & Governance,Manual Control Account,00001,Balance Sheet,Balance,- VAT,25/01/2023,0175488,-£191.06,Revenue,Arnold Clark Finance Ltd,20685,,
Chorley Borough Council,http://statistics.data.gov.uk/id/local-authority/30UE,Tourism,1039,GOVN - Policy & Governance,Events Insurance,40252,Services,5027,Addition of Christmas Attraction/Winter Wonderland to annual events policy,18/01/2023,0174948,"£2,016.00",Revenue,NAME REDACTED,83531,,
Chorley Borough Council,http://statistics.data.gov.uk/id/local-authority/30UE,Regulatory Services,1048,PLAN - Planning & Development,Taxi Testing & Vehicle Safety Report,40234,Services,5027,MOTS,11/01/2023,0175209,"£1,261.55",Revenue,Autocentre LTD,21651,,
Chorley Borough Council,http://statistics.data.gov.uk/id/local-authority/30UE,Regulatory Services,1048,PLAN - Planning & Development,Taxi Testing & Vehicle Safety Report,40234,Services,5027,Taxi tests,11/01/2023,0175209,£196.65,Revenue,Autocentre LTD,21651,,
Chorley Borough Council,http://statistics.data.gov.uk/id/local-authority/30UE,Service Management & Support,1009,CUST - Customer & Digital,Hire Of Vehicles and Plant,30028,Contrct Hire & Operating Lease,5018,As per submission to NAME REDACTED invitation to Tender for the  contract hire with service and maintenance of  Grounds Maintenan,25/01/2023,0174975,"£1,242.40",Revenue,Balmers Garden Machinery,17075,,
Chorley Borough Council,http://statistics.data.gov.uk/id/local-authority/30UE,Control Accounts,Control,GOVN - Policy & Governance,General Balances,00100,Balance Sheet,Balance,28 aug 22,13/01/2023,0173616,"£3,043.32",Revenue,Barclaycard Commercial,59848,,
Chorley Borough Council,http://statistics.data.gov.uk/id/local-authority/30UE,Corporate Management,1008,GOVN - Policy & Governance,Bank Charges,40151,Miscellaneous Expenses,5034,,13/01/2023,0174988,"£2,290.79",Revenue,Barclaycard Merchant Services,61601,,
Chorley Borough Council,http://statistics.data.gov.uk/id/local-authority/30UE,Corporate Management,1008,GOVN - Policy & Governance,Bank Charges,40151,Miscellaneous Expenses,5034,,13/01/2023,0174990,"£1,697.33",Revenue,Barclaycard Merchant Services,61601,,
Chorley Borough Council,http://statistics.data.gov.uk/id/local-authority/30UE,Corporate Management,1008,GOVN - Policy & Governance,Bank Charges,40151,Miscellaneous Expenses,5034,,13/01/2023,0174992,£217.00,Revenue,Barclaycard Merchant Services,61601,,
Chorley Borough Council,http://statistics.data.gov.uk/id/local-authority/30UE,Corporate Management,1008,GOVN - Policy & Governance,Bank Charges,40151,Miscellaneous Expenses,5034,,13/01/2023,0174992,£124.93,Revenue,Barclaycard Merchant Services,61601,,
Chorley Borough Council,http://statistics.data.gov.uk/id/local-authority/30UE,Corporate Management,1008,GOVN - Policy & Governance,Bank Charges,40151,Miscellaneous Expenses,5034,,13/01/2023,0174996,£459.07,Revenue,Barclaycard Merchant Services,61601,,
Chorley Borough Council,http://statistics.data.gov.uk/id/local-authority/30UE,Corporate Management,1008,GOVN - Policy & Governance,Bank Charges,40151,Miscellaneous Expenses,5034,,13/01/2023,0175000,£217.00,Revenue,Barclaycard Merchant Services,61601,,
Chorley Borough Council,http://statistics.data.gov.uk/id/local-authority/30UE,Corporate Management,1008,GOVN - Policy & Governance,Bank Charges,40151,Miscellaneous Expenses,5034,,13/01/2023,0175000,£122.53,Revenue,Barclaycard Merchant Services,61601,,
Chorley Borough Council,http://statistics.data.gov.uk/id/local-authority/30UE,Corporate Management,1008,GOVN - Policy & Governance,Bank Charges,40151,Miscellaneous Expenses,5034,,13/01/2023,0175001,£316.18,Revenue,Barclaycard Merchant Services,61601,,
Chorley Borough Council,http://statistics.data.gov.uk/id/local-authority/30UE,Corporate Management,1008,GOVN - Policy & Governance,Bank Charges,40151,Miscellaneous Expenses,5034,,13/01/2023,0175002,"£1,055.35",Revenue,Barclaycard Merchant Services,61601,,
Chorley Borough Council,http://statistics.data.gov.uk/id/local-authority/30UE,Corporate Management,1008,GOVN - Policy & Governance,Bank Charges,40151,Miscellaneous Expenses,5034,,13/01/2023,0175003,"£2,046.73",Revenue,Barclaycard Merchant Services,61601,,
Chorley Borough Council,http://statistics.data.gov.uk/id/local-authority/30UE,Tourism,1039,GOVN - Policy & Governance,Publicity - Advertising,40157,Miscellaneous Expenses,5034,Rock FM campaign for Christmas in Chorley/Winter Wonderland - 3rd December - 29 December,18/01/2023,0175323,"£2,782.00",Revenue,Bauer Active Ltd,50574,,
Chorley Borough Council,http://statistics.data.gov.uk/id/local-authority/30UE,Service Management & Support,1009,CUST - Customer & Digital,Grounds Maintenance Contractor,20043,Grounds Maintenance Costs,5013,Pruning of Horse chestnut and Beech - ADDRESS REDACTED,11/01/2023,0175180,£580.00,Revenue,Beardwood Tree Services,77437,,
Chorley Borough Council,http://statistics.data.gov.uk/id/local-authority/30UE,Economic Development,1096,GROW - Commercial & Property,Electricity,20013,Energy Costs,5006,15 Oct 2022 - 15 Nov 2022,11/01/2023,0175068,"£1,888.57",Revenue,BES Commercial Electricity Ltd,76115,,
Chorley Borough Council,http://statistics.data.gov.uk/id/local-authority/30UE,Economic Development,1096,GROW - Commercial & Property,Electricity,20013,Energy Costs,5006,15 Nov 2022 - 15 Dec 2022,11/01/2023,0175069,"£2,226.66",Revenue,BES Commercial Electricity Ltd,76115,,
Chorley Borough Council,http://statistics.data.gov.uk/id/local-authority/30UE,Economic Development,1096,GROW - Commercial & Property,Electricity,20013,Energy Costs,5006,2 Oct 2022 - 15 Oct 2022,11/01/2023,0175070,"£1,060.90",Revenue,BES Commercial Electricity Ltd,76115,,
Chorley Borough Council,http://statistics.data.gov.uk/id/local-authority/30UE,Central Support Services,1009,GOVN - Policy & Governance,External Contractor,40198,Miscellaneous Expenses,5034,Payroll contract for Chorley Council 2022/2023,18/01/2023,0175058,"£6,822.90",Revenue,Blackpool Borough Council,16518,,
Chorley Borough Council,http://statistics.data.gov.uk/id/local-authority/30UE,Recreation & Sport,1037,GOVN - Policy & Governance,Other Fees,40212,Miscellaneous Expenses,5034,Payroll contract for 2022/23 for Chorley Leisure,25/01/2023,0175196,"£1,140.30",Revenue,Blackpool Borough Council,16518,,
Chorley Borough Council,http://statistics.data.gov.uk/id/local-authority/30UE,Recreation & Sport,1037,GOVN - Policy & Governance,Other Fees,40212,Miscellaneous Expenses,5034,Payroll contract for 2022/23 for Chorley Leisure,25/01/2023,0175197,"£1,102.50",Revenue,Blackpool Borough Council,16518,,
Chorley Borough Council,http://statistics.data.gov.uk/id/local-authority/30UE,Central Support Services,1009,GOVN - Policy & Governance,External Contractor,40198,Miscellaneous Expenses,5034,Payroll contract for Chorley Council 2022/2023,18/01/2023,0175393,"£7,377.30",Revenue,Blackpool Borough Council,16518,,
Chorley Borough Council,http://statistics.data.gov.uk/id/local-authority/30UE,Central Support Services,1009,GROW - Commercial & Property,Planned Maintenance,20006,Repairs Maintenance & Alts,5005,Bengal St Bi-Annual Maintenance contract of 2 Barriers,11/01/2023,0174929,£295.00,Revenue,Boundary Gate and Barrier Contracts Ltd,78225,,
Chorley Borough Council,http://statistics.data.gov.uk/id/local-authority/30UE,Building Control,1090,PLAN - Planning & Development,Agency Staff,13000,Direct Employee Expenses,5001,Agency fees for NAME REDACTED Building Control Officer effective 15.08.2022 for an initial period of 6 months,04/01/2023,0174944,"£1,300.00",Revenue,BRG Interim Solutions Ltd,85601,,
Chorley Borough Council,http://statistics.data.gov.uk/id/local-authority/30UE,Capital,Capital,GROW - Commercial & Property,Other Contractor,03012,Capital Expenditure,Capital,"Strawberry Fields Ground floor sub division works  £117,382 First floor sub division works  £143,209",11/01/2023,0175222,"£26,773.00",Capital,Bryan Lee Building Contractors Ltd,78160,,
Chorley Borough Council,http://statistics.data.gov.uk/id/local-authority/30UE,Capital,Capital,GROW - Commercial & Property,Other Contractor,03012,Capital Expenditure,Capital,"Strawberry Fields Ground floor sub division works  £117,382 First floor sub division works  £143,209",25/01/2023,0175466,"£24,523.80",Capital,Bryan Lee Building Contractors Ltd,78160,,
Chorley Borough Council,http://statistics.data.gov.uk/id/local-authority/30UE,Service Management & Support,1009,CUST - Customer & Digital,Supplies-Grounds Maintenance,40025,"Equipment, Furniture & Materia",5023,Supply 1 pallet of Hanson fast set post crete (60 bags),11/01/2023,0173304,£257.40,Revenue,C & W BERRY LIMITED,18180,,
Chorley Borough Council,http://statistics.data.gov.uk/id/local-authority/30UE,Service Management & Support,1009,CUST - Customer & Digital,External Contractor,40198,Miscellaneous Expenses,5034,Bengal St Depot – Empty yard catch pits each month – 400.00 x 12 = 4800.00 Bengal St Depot – Empty yard interceptor every 3 month,25/01/2023,0175409,£400.00,Revenue,NAME REDACTED,16579,,
Chorley Borough Council,http://statistics.data.gov.uk/id/local-authority/30UE,Corporate Management,1008,GROW - Commercial & Property,Promotional Expenses,40159,Miscellaneous Expenses,5034,To supply entertainment for the Christmas Fun Thursday on Market Walk on the 22nd Dec 22 Trees A Live Walkabout act,04/01/2023,0174965,£820.00,Revenue,Candy House Events and Entertainment,85030,,
Chorley Borough Council,http://statistics.data.gov.uk/id/local-authority/30UE,Business Support,1095,GROW - Commercial & Property,Furniture - Purchase,40012,"Equipment, Furniture & Materia",5023,New Refrigerated Salad Prep Top for Primrose cafe,11/01/2023,0175082,£472.99,Revenue,Catering Appliance Superstore,76336,,
Chorley Borough Council,http://statistics.data.gov.uk/id/local-authority/30UE,Tourism,1039,GOVN - Policy & Governance,Tools & Equipment - Hire,40004,"Equipment, Furniture & Materia",5023,"Hire of 5 x Lighting Towers Delivery, Set Up and Collection Diesel",11/01/2023,0174926,£875.00,Revenue,CDS Events,81168,,
Chorley Borough Council,http://statistics.data.gov.uk/id/local-authority/30UE,Corporate Management,1008,GOVN - Policy & Governance,Other Contributions,40145,Grants and Subscriptions,5031,To provide community transports services in Chorley in accordance with grant agreement.  Including trips for essential shopping a,18/01/2023,0175085,"£10,000.00",Revenue,Central Lancs Dial-A-Ride Ltd,16617,,
Chorley Borough Council,http://statistics.data.gov.uk/id/local-authority/30UE,Parking Services,1066,GROW - Commercial & Property,External Contractors,50008,Private Contractors,5042,Processing 074 - Provision of Notice. Processing Services for period 01.04.2022-31.03.2023 Notice Processing Services Automated T,11/01/2023,0168566,£296.82,Revenue,Chipside Ltd,22063,,
Chorley Borough Council,http://statistics.data.gov.uk/id/local-authority/30UE,Parking Services,1066,GROW - Commercial & Property,External Contractors,50008,Private Contractors,5042,Processing 075 Processing 076 Processing 077 Processing 079 Processing 080 Processing 085 Processing 086 MIPERMIT FEES MIPERMIT C,11/01/2023,0168566,£39.33,Revenue,Chipside Ltd,22063,,
Chorley Borough Council,http://statistics.data.gov.uk/id/local-authority/30UE,Parking Services,1066,GROW - Commercial & Property,External Contractors,50008,Private Contractors,5042,Processing 075 Processing 076 Processing 077 Processing 079 Processing 080 Processing 085 Processing 086 MIPERMIT FEES MIPERMIT C,04/01/2023,0170686,£520.19,Revenue,Chipside Ltd,22063,,
Chorley Borough Council,http://statistics.data.gov.uk/id/local-authority/30UE,Parking Services,1066,GROW - Commercial & Property,External Contractors,50008,Private Contractors,5042,Processing 075 Processing 076 Processing 077 Processing 079 Processing 080 Processing 085 Processing 086 MIPERMIT FEES MIPERMIT C,04/01/2023,0170953,£284.97,Revenue,Chipside Ltd,22063,,
Chorley Borough Council,http://statistics.data.gov.uk/id/local-authority/30UE,Parking Services,1066,GROW - Commercial & Property,External Contractors,50008,Private Contractors,5042,Processing 074 - Provision of Notice. Processing Services for period 01.04.2022-31.03.2023 Notice Processing Services Automated T,11/01/2023,0173111,£231.18,Revenue,Chipside Ltd,22063,,
Chorley Borough Council,http://statistics.data.gov.uk/id/local-authority/30UE,Parking Services,1066,GROW - Commercial & Property,External Contractors,50008,Private Contractors,5042,Processing 075 Processing 076 Processing 077 Processing 079 Processing 080 Processing 085 Processing 086 MIPERMIT FEES MIPERMIT C,11/01/2023,0173111,£286.83,Revenue,Chipside Ltd,22063,,
Chorley Borough Council,http://statistics.data.gov.uk/id/local-authority/30UE,Parking Services,1066,GROW - Commercial & Property,External Contractors,50008,Private Contractors,5042,Processing 075 Processing 076 Processing 077 Processing 079 Processing 080 Processing 085 Processing 086 MIPERMIT FEES MIPERMIT C,11/01/2023,0175029,£519.05,Revenue,Chipside Ltd,22063,,
Chorley Borough Council,http://statistics.data.gov.uk/id/local-authority/30UE,Parking Services,1066,GROW - Commercial & Property,External Contractors,50008,Private Contractors,5042,Annual Capital fixed costs distribution based on 958 pcns (06.09.21 – 05.09.22),11/01/2023,0175086,£476.20,Revenue,Chipside Ltd,22063,,
Chorley Borough Council,http://statistics.data.gov.uk/id/local-authority/30UE,Regulatory Services,1048,PLAN - Planning & Development,Taxi Testing & Vehicle Safety Report,40234,Services,5027,mot,11/01/2023,0175126,"£1,261.55",Revenue,Chorley Autocare Ltd,17110,,
Chorley Borough Council,http://statistics.data.gov.uk/id/local-authority/30UE,Regulatory Services,1048,PLAN - Planning & Development,Taxi Testing & Vehicle Safety Report,40234,Services,5027,taxi test,11/01/2023,0175126,£196.65,Revenue,Chorley Autocare Ltd,17110,,
Chorley Borough Council,http://statistics.data.gov.uk/id/local-authority/30UE,Central Support Services,1009,GOVN - Policy & Governance,Misc Expenses,40200,Miscellaneous Expenses,5034,westway bal,13/01/2023,0173493,"£17,375.11",Revenue,Chorley Leisure Ltd,83376,,
Chorley Borough Council,http://statistics.data.gov.uk/id/local-authority/30UE,Recreation & Sport,1037,GOVN - Policy & Governance,External Contractors,50008,Private Contractors,5042,recurring basis,13/01/2023,0174278,"£88,000.00",Revenue,Chorley Leisure Ltd,83376,,
Chorley Borough Council,http://statistics.data.gov.uk/id/local-authority/30UE,Recreation & Sport,1037,GOVN - Policy & Governance,External Contractors,50008,Private Contractors,5042,non-recurring basis,13/01/2023,0174278,"£681,000.00",Revenue,Chorley Leisure Ltd,83376,,
Chorley Borough Council,http://statistics.data.gov.uk/id/local-authority/30UE,Service Management & Support,1009,CUST - Customer & Digital,Vehicles and Plant Maintenance,30045,Direct Transport Costs,5016,NUMBER PLATE REDACTED New tyre Valve Disposal,25/01/2023,0174955,£257.40,Revenue,Chorley Tyres,53719,,
Chorley Borough Council,http://statistics.data.gov.uk/id/local-authority/30UE,Community Development,1097,EARL - Communities,Core Funding Grants,40133,Grants and Subscriptions,5031,2rd Payment for delivery of commissioned service,18/01/2023,0175390,"£7,500.00",Revenue,Chorley Womens Centre,17036,,
Chorley Borough Council,http://statistics.data.gov.uk/id/local-authority/30UE,Corporate Management,1008,EARL - Communities,External Contractor,40198,Miscellaneous Expenses,5034,Inspire Youth Zone Mentoring Programme - CBC Contribution,04/01/2023,0174679,"£19,638.00",Revenue,Chorley Youth Zone,77339,,
Chorley Borough Council,http://statistics.data.gov.uk/id/local-authority/30UE,Central Support Services,1009,EARL - Communities,Children's Activities,40188,Miscellaneous Expenses,5034,Additional funding for improvements to Chorley HAF programme. £7000 - Food provision £5500 - SEND offer expansion (£1500 of the f,11/01/2023,0175116,"£12,500.00",Revenue,Chorley Youth Zone,77339,,
Chorley Borough Council,http://statistics.data.gov.uk/id/local-authority/30UE,Central Support Services,1009,EARL - Communities,Other Contributions,40145,Grants and Subscriptions,5031,"For the delivery of detached youth work provision, as per the funding agreement and detached project plan 2022-23",18/01/2023,0175328,"£20,000.00",Revenue,Chorley Youth Zone,77339,,
Chorley Borough Council,http://statistics.data.gov.uk/id/local-authority/30UE,Central Support Services,1009,GOVN - Policy & Governance,General Subscriptions,40146,Grants and Subscriptions,5031,Finance Advisory Network 1st April 2022 - 31st March 2023 Shared Services additional charge,18/01/2023,0175321,"£1,657.50",Revenue,CIPFA Business Ltd,16247,,
Chorley Borough Council,http://statistics.data.gov.uk/id/local-authority/30UE,Central Support Services,1009,GOVN - Policy & Governance,General Subscriptions,40146,Grants and Subscriptions,5031,Finance Advisory Network 1st April 2022 - 31st March 2023,18/01/2023,0175322,"£4,660.00",Revenue,CIPFA Business Ltd,16247,,
Chorley Borough Council,http://statistics.data.gov.uk/id/local-authority/30UE,Central Support Services,1009,GOVN - Policy & Governance,General Subscriptions,40146,Grants and Subscriptions,5031,TISonline Full Subscription 1st April 2022 - 31st March 2023,18/01/2023,0175331,"£4,650.00",Revenue,CIPFA Business Ltd,16247,,
Chorley Borough Council,http://statistics.data.gov.uk/id/local-authority/30UE,Community Development,1097,EARL - Communities,Citizens Advice Bureau,40125,Grants and Subscriptions,5031,3rd Payment for delivery of commissioned advice service,11/01/2023,0175186,"£18,934.00",Revenue,Citizens Advice Lancashire,17035,,
Chorley Borough Council,http://statistics.data.gov.uk/id/local-authority/30UE,Central Support Services,1009,GOVN - Policy & Governance,Consultants` Fees,40077,Services,5027,"Chorley Kofax Importer Upgrade - Software: £0 - Consultancy: £1,930 - Maintenance + Support: £0",11/01/2023,0174949,"£1,930.00",Revenue,Civica UK Limited,17463,,
Chorley Borough Council,http://statistics.data.gov.uk/id/local-authority/30UE,Corporate Management,1008,GOVN - Policy & Governance,Other Fees,40212,Miscellaneous Expenses,5034,Late penalty fee,25/01/2023,0175465,£300.00,Revenue,Companies House - Late Filing Penalties,84783,,
Chorley Borough Council,http://statistics.data.gov.uk/id/local-authority/30UE,Central Support Services,1009,CUST - Customer & Digital,Items For Resale,40027,"Equipment, Furniture & Materia",5023,"240L wheeled bin. Green 0400 body and lid, Chorley logo to body in white, standard axles, 200MM black wheels - stacked in 10`s",11/01/2023,0174485,"£5,970.00",Revenue,Contenur Uk Ltd,82451,,
Chorley Borough Council,http://statistics.data.gov.uk/id/local-authority/30UE,Central Support Services,1009,CUST - Customer & Digital,Items For Resale,40027,"Equipment, Furniture & Materia",5023,"240L wheeled bin. Brown 0905 body and lid, Chorley logo to body in white, standard axles, 200MM black wheels - stacked in 10`s",11/01/2023,0174485,"£5,970.00",Revenue,Contenur Uk Ltd,82451,,
Chorley Borough Council,http://statistics.data.gov.uk/id/local-authority/30UE,Recreation & Sport,1037,GROW - Commercial & Property,Gas,20014,Energy Costs,5006,lodge bank,04/01/2023,0174979,"£7,147.84",Revenue,Corona Energy Retail 2 Ltd,67249,,
Chorley Borough Council,http://statistics.data.gov.uk/id/local-authority/30UE,Recreation & Sport,1037,GROW - Commercial & Property,Gas,20014,Energy Costs,5006,Centre Drive,04/01/2023,0174980,"£3,458.00",Revenue,Corona Energy Retail 2 Ltd,67249,,
Chorley Borough Council,http://statistics.data.gov.uk/id/local-authority/30UE,Business Support,1095,GROW - Commercial & Property,Gas,20014,Energy Costs,5006,Fleet street,04/01/2023,0174981,"£5,615.07",Revenue,Corona Energy Retail 2 Ltd,67249,,
Chorley Borough Council,http://statistics.data.gov.uk/id/local-authority/30UE,Recreation & Sport,1037,GROW - Commercial & Property,Gas,20014,Energy Costs,5006,Water street,04/01/2023,0174982,"£25,160.53",Revenue,Corona Energy Retail 2 Ltd,67249,,
Chorley Borough Council,http://statistics.data.gov.uk/id/local-authority/30UE,Central Support Services,1009,CUST - Customer & Digital,Agency Staff,13000,Direct Employee Expenses,5001,Invoices for temp wages,25/01/2023,0175031,"£1,073.20",Revenue,Daniel Adams Recruitment,78104,,
Chorley Borough Council,http://statistics.data.gov.uk/id/local-authority/30UE,Business Support,1095,GROW - Commercial & Property,Cleaning/Attendants' Services,20041,Cleaning and Domestic Supplies,5012,"Per your week 35 invoice 654882, cleaning cover week ending 27/11/22, 20 hours @ £13.80",11/01/2023,0175054,£276.00,Revenue,Daniel Adams Recruitment,78104,,
Chorley Borough Council,http://statistics.data.gov.uk/id/local-authority/30UE,Business Support,1095,GROW - Commercial & Property,Cleaning/Attendants' Services,20041,Cleaning and Domestic Supplies,5012,"Per your week 36 invoice 654913, cleaning cover for week ending 04/12/22. 20 hours @ £13.80",11/01/2023,0175055,£276.00,Revenue,Daniel Adams Recruitment,78104,,
Chorley Borough Council,http://statistics.data.gov.uk/id/local-authority/30UE,Business Support,1095,GROW - Commercial & Property,Cleaning/Attendants' Services,20041,Cleaning and Domestic Supplies,5012,"Per your week 7 invoice 654964, cleaning cover for week ending 11/12/22. 20 hours @ £13.80",11/01/2023,0175104,£276.00,Revenue,Daniel Adams Recruitment,78104,,
Chorley Borough Council,http://statistics.data.gov.uk/id/local-authority/30UE,Central Support Services,1009,CUST - Customer & Digital,Agency Staff,13000,Direct Employee Expenses,5001,Invoices for temp wages,11/01/2023,0175117,£529.20,Revenue,Daniel Adams Recruitment,78104,,
Chorley Borough Council,http://statistics.data.gov.uk/id/local-authority/30UE,Business Support,1095,GROW - Commercial & Property,Cleaning/Attendants' Services,20041,Cleaning and Domestic Supplies,5012,"Per your Week 38 invoice 655006, cleaning cover week ending 18/12/22, 23 hours at £13.80",11/01/2023,0175154,£317.40,Revenue,Daniel Adams Recruitment,78104,,
Chorley Borough Council,http://statistics.data.gov.uk/id/local-authority/30UE,Business Support,1095,GROW - Commercial & Property,Cleaning/Attendants' Services,20041,Cleaning and Domestic Supplies,5012,"per your week 39 invoice 655021. cleaning cover for week ending 25.12.22, 20 hours @ £13.80",18/01/2023,0175296,£276.00,Revenue,Daniel Adams Recruitment,78104,,
Chorley Borough Council,http://statistics.data.gov.uk/id/local-authority/30UE,Capital,Capital,GOVN - Policy & Governance,Other Capital Related Fees,03024,Capital Expenditure,Capital,Purchase of ADDRESS REDACTED,13/01/2023,0174355,"£174,995.00",Capital,NAME REDACTED,87043,,
Chorley Borough Council,http://statistics.data.gov.uk/id/local-authority/30UE,Development Control,1091,PLAN - Planning & Development,Professional Fees,40063,Services,5027,Costs Award Land to the rear of ADDRESS REDACTED,18/01/2023,0175155,"£4,000.00",Revenue,De Pol Associates Ltd,68423,,
Chorley Borough Council,http://statistics.data.gov.uk/id/local-authority/30UE,Open Spaces,1038,CUST - Customer & Digital,Grounds Maintenance Contractor,20043,Grounds Maintenance Costs,5013,Clean out the silt traps at Yarrow valley park,25/01/2023,0175450,£300.00,Revenue,NAME REDACTED,21092,,
Chorley Borough Council,http://statistics.data.gov.uk/id/local-authority/30UE,Open Spaces,1038,CUST - Customer & Digital,Grounds Maintenance Contractor,20043,Grounds Maintenance Costs,5013,Clear ditch and silt trap at Withnell nature reserve,25/01/2023,0175451,£300.00,Revenue,NAME REDACTED,21092,,
Chorley Borough Council,http://statistics.data.gov.uk/id/local-authority/30UE,Capital,Capital,GOVN - Policy & Governance,Other Capital Related Fees,03024,Capital Expenditure,Capital,Purchase of ADDRESS REDACTED,13/01/2023,0174924,"£169,950.00",Capital,NAME REDACTED,87070,,
Chorley Borough Council,http://statistics.data.gov.uk/id/local-authority/30UE,Capital,Capital,PLAN - Planning & Development,Main Contractor,03007,Capital Expenditure,Capital,Grass pitch improvement works at Westway Playing Fields,25/01/2023,0174282,"£8,858.00",Capital,Duncan Ross Ltd,76803,,
Chorley Borough Council,http://statistics.data.gov.uk/id/local-authority/30UE,Capital,Capital,PLAN - Planning & Development,Main Contractor,03007,Capital Expenditure,Capital,Pitch Maintenance King George V Playing Fields 2022/2023,04/01/2023,0174836,£802.05,Capital,Duncan Ross Ltd,76803,,
Chorley Borough Council,http://statistics.data.gov.uk/id/local-authority/30UE,Capital,Capital,PLAN - Planning & Development,Main Contractor,03007,Capital Expenditure,Capital,Pitch maintenance works to Jubilee Recreation Ground Adlington,11/01/2023,0175015,£500.00,Capital,Duncan Ross Ltd,76803,,
Chorley Borough Council,http://statistics.data.gov.uk/id/local-authority/30UE,Capital,Capital,PLAN - Planning & Development,Main Contractor,03007,Capital Expenditure,Capital,Pitch maintenance works to Jubilee Recreation Ground Adlington,11/01/2023,0175170,£582.00,Capital,Duncan Ross Ltd,76803,,
Chorley Borough Council,http://statistics.data.gov.uk/id/local-authority/30UE,Culture & Heritage,1036,GOVN - Policy & Governance,Souvenirs,40033,"Equipment, Furniture & Materia",5023,Books delivered to Astley Hall gift shop as arranged with NAME REDACTED. £560.62 total,18/01/2023,0175325,£560.62,Revenue,Ebb and Flo Bookshop,67239,,
Chorley Borough Council,http://statistics.data.gov.uk/id/local-authority/30UE,Central Support Services,1009,GROW - Commercial & Property,General Repairs - Reactive,20004,Repairs Maintenance & Alts,5005,"Hall Gate Car Park Take down, straighten, re-paint as required & re-erect damaged height barrier at Hall Gate car park as per quo",25/01/2023,0174858,£840.00,Revenue,Edwards Wrought Iron Ltd,77654,,
Chorley Borough Council,http://statistics.data.gov.uk/id/local-authority/30UE,Parking Services,1066,GROW - Commercial & Property,Fixtures & Fittings - Repair/Mtnce,20028,Fixtures and Fittings,5010,"All Seasons Height Restriction Barrier Take down, replace & erect barrier to original specification £1390 Provide only hooped kne",25/01/2023,0174859,"£1,520.00",Revenue,Edwards Wrought Iron Ltd,77654,,
Chorley Borough Council,http://statistics.data.gov.uk/id/local-authority/30UE,Central Support Services,1009,GROW - Commercial & Property,Asset Maintenance Fund,20012,Repairs Maintenance & Alts,5005,"Primrose Gardens Quote 1065/0 To provide all necessary labour, plant and materials to undertake the following: • Carefully take o",11/01/2023,0166451,"£3,956.00",Revenue,EFT Construction,78195,,
Chorley Borough Council,http://statistics.data.gov.uk/id/local-authority/30UE,Central Support Services,1009,GROW - Commercial & Property,General Repairs - Reactive,20004,Repairs Maintenance & Alts,5005,Housing  - General Building Reactive Repairs,25/01/2023,0175215,"£3,739.40",Revenue,EFT Construction,78195,,
Chorley Borough Council,http://statistics.data.gov.uk/id/local-authority/30UE,Capital,Capital,GROW - Commercial & Property,Other Contractor,03012,Capital Expenditure,Capital,Strawberry Fields Digital Hub First floor DOP store Further to your recent discussions with NAME REDACTED and subsequent email we,11/01/2023,0175216,"£9,275.00",Capital,EFT Construction,78195,,
Chorley Borough Council,http://statistics.data.gov.uk/id/local-authority/30UE,Central Support Services,1009,GROW - Commercial & Property,General Repairs - Reactive,20004,Repairs Maintenance & Alts,5005,Whittle Surgery/Parish Centre Works As agreed with NAME REDACTED Parish Building Issue 14  £ 75.00 plus VAT Issue 28,25/01/2023,0175478,£643.00,Revenue,EFT Construction,78195,,
Chorley Borough Council,http://statistics.data.gov.uk/id/local-authority/30UE,Central Support Services,1009,GROW - Commercial & Property,Professional Fees,40063,Services,5027,"Streetscene relocation options study - Bengal St Depot, Chorley",18/01/2023,0175164,"£6,850.00",Revenue,Egniol Environmental Ltd,78236,,
Chorley Borough Council,http://statistics.data.gov.uk/id/local-authority/30UE,Central Support Services,1009,GROW - Commercial & Property,Professional Fees,40063,Services,5027,Fees for consultancy support - Bengal Street Relocation Options Study,18/01/2023,0175164,£900.00,Revenue,Egniol Environmental Ltd,78236,,
Chorley Borough Council,http://statistics.data.gov.uk/id/local-authority/30UE,Homelessness,1075,GROW - Commercial & Property,Laundry,40042,"Clothing, Uniforms and Laundry",5025,For the laundry services provided to Cotswold House,04/01/2023,0174934,"£1,019.90",Revenue,Elis UK Ltd,20799,,
Chorley Borough Council,http://statistics.data.gov.uk/id/local-authority/30UE,Homelessness,1075,GROW - Commercial & Property,Laundry,40042,"Clothing, Uniforms and Laundry",5025,For the laundry services provided to Cotswold House,04/01/2023,0174974,"£1,019.90",Revenue,Elis UK Ltd,20799,,
Chorley Borough Council,http://statistics.data.gov.uk/id/local-authority/30UE,Homelessness,1075,GROW - Commercial & Property,Laundry,40042,"Clothing, Uniforms and Laundry",5025,For the laundry services provided to Cotswold House,25/01/2023,0175336,"£1,019.90",Revenue,Elis UK Ltd,20799,,
Chorley Borough Council,http://statistics.data.gov.uk/id/local-authority/30UE,Central Support Services,1009,EARL - Communities,Children's Activities,40188,Miscellaneous Expenses,5034,HAF Food parcels/Voucher for the festive period pre and post,11/01/2023,0175183,"£1,000.00",Revenue,Emerging Futures CiC,81216,,
Chorley Borough Council,http://statistics.data.gov.uk/id/local-authority/30UE,Central Support Services,1009,GROW - Commercial & Property,General Repairs - Reactive,20004,Repairs Maintenance & Alts,5005,"Cotswold HouseClear Roof of debris near the Flashing, Coat the roof with Proteus PU Liquid with rematt under the flashing.",25/01/2023,0175410,"£1,215.00",Revenue,Environmental Roofing Services Ltd,86992,,
Chorley Borough Council,http://statistics.data.gov.uk/id/local-authority/30UE,Central Support Services,1009,GROW - Commercial & Property,General Repairs - Reactive,20004,Repairs Maintenance & Alts,5005,Labour,25/01/2023,0175410,£135.00,Revenue,Environmental Roofing Services Ltd,86992,,
Chorley Borough Council,http://statistics.data.gov.uk/id/local-authority/30UE,Business Support,1095,GROW - Commercial & Property,Internet Charges,40104,Communication and Computing,5028,"``Call Off`` order for: Operate Growth, April 2022 to March 2023 @ £  249.50 pcm (£2994 p.a.) Connect Growth, April 2022 to March",25/01/2023,0175314,£341.85,Revenue,Essensys Ltd,77836,,
Chorley Borough Council,http://statistics.data.gov.uk/id/local-authority/30UE,Business Support,1095,GROW - Commercial & Property,Internet Charges,40104,Communication and Computing,5028,"``Call Off`` order for: Operate Growth, April 2022 to March 2023 @ £  249.50 pcm (£2994 p.a.) Connect Growth, April 2022 to March",25/01/2023,0175334,"£2,950.00",Revenue,Essensys Ltd,77836,,
Chorley Borough Council,http://statistics.data.gov.uk/id/local-authority/30UE,Central Support Services,1009,GROW - Commercial & Property,General Repairs - Reactive,20004,Repairs Maintenance & Alts,5005,Town Hall Survey of flagpoles to prepare replacement schedule and quote,11/01/2023,0174861,£388.00,Revenue,Eurosafe Solutions Limited,66302,,
Chorley Borough Council,http://statistics.data.gov.uk/id/local-authority/30UE,Capital,Capital,PLAN - Planning & Development,Main Contractor,03007,Capital Expenditure,Capital,Saturday12th November Tree Giveaway.  Delivery direct to ADDRESS REDACTED.  all trees and hedging as per quotation.,04/01/2023,0174792,"£6,247.50",Capital,Everglades Nurseries Ltd,20202,,
Chorley Borough Council,http://statistics.data.gov.uk/id/local-authority/30UE,Service Management & Support,1009,CUST - Customer & Digital,Supplies-Grounds Maintenance,40025,"Equipment, Furniture & Materia",5023,Hire a leaf sucker for 2 weeks,11/01/2023,0174288,£700.00,Revenue,F R Sharrock Ltd,18091,,
Chorley Borough Council,http://statistics.data.gov.uk/id/local-authority/30UE,Central Support Services,1009,GOVN - Policy & Governance,Legal Fees,40171,Miscellaneous Expenses,5034,Tribunal Claim - NAME REDACTED,11/01/2023,0174543,"£3,422.00",Revenue,Forbes Solicitors Office Account,87054,,
Chorley Borough Council,http://statistics.data.gov.uk/id/local-authority/30UE,Central Support Services,1009,GOVN - Policy & Governance,Legal Fees,40171,Miscellaneous Expenses,5034,Tribunal Claim - NAME REDACTED,11/01/2023,0174550,"£1,481.50",Revenue,Forbes Solicitors Office Account,87054,,
Chorley Borough Council,http://statistics.data.gov.uk/id/local-authority/30UE,Central Support Services,1009,GOVN - Policy & Governance,Legal Fees,40171,Miscellaneous Expenses,5034,Fees in relation to NAME REDACTED tribunal,25/01/2023,0175358,"£3,871.00",Revenue,Forbes Solicitors Office Account,87054,,
Chorley Borough Council,http://statistics.data.gov.uk/id/local-authority/30UE,Central Support Services,1009,GOVN - Policy & Governance,Legal Fees,40171,Miscellaneous Expenses,5034,Fees in relation to NAME REDACTED tribunal,25/01/2023,0175389,"£2,500.50",Revenue,Forbes Solicitors Office Account,87054,,
Chorley Borough Council,http://statistics.data.gov.uk/id/local-authority/30UE,Service Management & Support,1009,CUST - Customer & Digital,Vehicles and Plant Maintenance,30045,Direct Transport Costs,5016,As per invoice NUMBER PLATE REDACTED Diagnose fault with brake lights. Faulty towing electrics. Remove & replace faulty towing el,11/01/2023,0173919,£277.00,Revenue,G & S Auto Electrical Services,16323,,
Chorley Borough Council,http://statistics.data.gov.uk/id/local-authority/30UE,Service Management & Support,1009,CUST - Customer & Digital,Hire Of Vehicles and Plant,30028,Contrct Hire & Operating Lease,5018,"Extension of the sweepers 12 month Contract - Start date 02/09/22 NAME REDACTED NUMBER PLATE REDACTED) – contract hire only - £1,",25/01/2023,0175120,"£8,332.30",Revenue,Go Plant Fleet Services Ltd,80857,,
Chorley Borough Council,http://statistics.data.gov.uk/id/local-authority/30UE,Capital,Capital,GROW - Commercial & Property,Consultants Fees,03025,Capital Expenditure,Capital,Professional services - client side `Strawberry Meadows` project as per fee proposal ref NUMBER REDACTED,18/01/2023,0175153,"£3,400.00",Capital,Gosling Consulting Limited,78380,,
Chorley Borough Council,http://statistics.data.gov.uk/id/local-authority/30UE,Business Support,1095,GROW - Commercial & Property,Stationery,40050,"Printing, Stationery & General",5026,Please supply the following:HP 953XL cartridges for the market printer:NIJ3989 @ £42.00 each black x2NIJ3990 @ £32.95 each Cyan x,11/01/2023,0175128,£336.66,Revenue,Grafton Projects Limited,76545,,
Chorley Borough Council,http://statistics.data.gov.uk/id/local-authority/30UE,Parking Services,1066,GROW - Commercial & Property,Fixtures & Fittings - Repair/Mtnce,20028,Fixtures and Fittings,5010,1 x Moisture trap @ £9.99 each for Friday St NAME REDACTED Machine,11/01/2023,0175128,£9.99,Revenue,Grafton Projects Limited,76545,,
Chorley Borough Council,http://statistics.data.gov.uk/id/local-authority/30UE,Corporate Management,1008,GOVN - Policy & Governance,External Audit,40064,Services,5027,2020/21 External Audit - Additional Audit fees now approved by NAME REDACTED,11/01/2023,0175056,"£10,500.00",Revenue,Grant Thornton UK LLP,57322,,
Chorley Borough Council,http://statistics.data.gov.uk/id/local-authority/30UE,Central Support Services,1009,GROW - Commercial & Property,Agency Staff,13000,Direct Employee Expenses,5001,Estate Surveyor Fees -  NAME REDACTED,04/01/2023,0174797,"£1,683.00",Revenue,Hays Senior Finance,20078,,
Chorley Borough Council,http://statistics.data.gov.uk/id/local-authority/30UE,Central Support Services,1009,GROW - Commercial & Property,Agency Staff,13000,Direct Employee Expenses,5001,Estate Surveyor Fees -  NAME REDACTED,04/01/2023,0174860,"£1,428.00",Revenue,Hays Senior Finance,20078,,
Chorley Borough Council,http://statistics.data.gov.uk/id/local-authority/30UE,Central Support Services,1009,GROW - Commercial & Property,Agency Staff,13000,Direct Employee Expenses,5001,Estate Surveyor Fees -  NAME REDACTED,04/01/2023,0174900,"£1,785.00",Revenue,Hays Senior Finance,20078,,
Chorley Borough Council,http://statistics.data.gov.uk/id/local-authority/30UE,Central Support Services,1009,GROW - Commercial & Property,Agency Staff,13000,Direct Employee Expenses,5001,Estate Surveyor Fees -  NAME REDACTED,04/01/2023,0174901,"£1,275.00",Revenue,Hays Senior Finance,20078,,
Chorley Borough Council,http://statistics.data.gov.uk/id/local-authority/30UE,Central Support Services,1009,GROW - Commercial & Property,Agency Staff,13000,Direct Employee Expenses,5001,Estate Surveyor Fees -  NAME REDACTED,04/01/2023,0174902,"£1,785.00",Revenue,Hays Senior Finance,20078,,
Chorley Borough Council,http://statistics.data.gov.uk/id/local-authority/30UE,Central Support Services,1009,GROW - Commercial & Property,Agency Staff,13000,Direct Employee Expenses,5001,Estate Surveyor Fees -  NAME REDACTED,25/01/2023,0175474,"£1,785.00",Revenue,Hays Senior Finance,20078,,
Chorley Borough Council,http://statistics.data.gov.uk/id/local-authority/30UE,Corporate Management,1008,EARL - Communities,Grants to Chorley T.C.Initiative,40128,Grants and Subscriptions,5031,Delivery of Household Support Fund Phase 3,04/01/2023,0174708,"£6,500.00",Revenue,Help The Homeless (Chorley),16716,,
Chorley Borough Council,http://statistics.data.gov.uk/id/local-authority/30UE,Central Support Services,1009,GROW - Commercial & Property,General Repairs - Reactive,20004,Repairs Maintenance & Alts,5005,Housing - Painting and Decorating,25/01/2023,0175270,£980.00,Revenue,Henry Nightingale & Son,17923,,
Chorley Borough Council,http://statistics.data.gov.uk/id/local-authority/30UE,Central Support Services,1009,GROW - Commercial & Property,General Repairs - Reactive,20004,Repairs Maintenance & Alts,5005,Primrose Gardens - Painting and Decorating,25/01/2023,0175271,£290.00,Revenue,Henry Nightingale & Son,17923,,
Chorley Borough Council,http://statistics.data.gov.uk/id/local-authority/30UE,Central Support Services,1009,GROW - Commercial & Property,General Repairs - Reactive,20004,Repairs Maintenance & Alts,5005,Primrose Gardens - Painting and Decorating,25/01/2023,0175273,£390.00,Revenue,Henry Nightingale & Son,17923,,
Chorley Borough Council,http://statistics.data.gov.uk/id/local-authority/30UE,Capital,Capital,GROW - Commercial & Property,Purchase Of Vehicles & Plant,03013,Capital Expenditure,Capital,Primrose Gardens Cafe Decorating ready for new tenants,25/01/2023,0175274,£785.00,Capital,Henry Nightingale & Son,17923,,
Chorley Borough Council,http://statistics.data.gov.uk/id/local-authority/30UE,Central Support Services,1009,EARL - Communities,Children's Activities,40188,Miscellaneous Expenses,5034,Chorley HAF provision of SEND activities Christmas 2022,11/01/2023,0175087,"£1,500.00",Revenue,High Five,84108,,
Chorley Borough Council,http://statistics.data.gov.uk/id/local-authority/30UE,Capital,Capital,GOVN - Policy & Governance,Other Capital Related Fees,03024,Capital Expenditure,Capital,ADDRESS REDACTED SDLT,11/01/2023,0175057,"£5,098.00",Capital,HM Revenue & Customs,56499,,
Chorley Borough Council,http://statistics.data.gov.uk/id/local-authority/30UE,Central Support Services,1009,EARL - Communities,Children's Activities,40188,Miscellaneous Expenses,5034,HAF Food parcels/Voucher for the festive period pre and post,11/01/2023,0175182,"£1,000.00",Revenue,Home-Start Central Lancashire Ltd,20585,,
Chorley Borough Council,http://statistics.data.gov.uk/id/local-authority/30UE,Community Development,1097,EARL - Communities,Core Funding Grants,40133,Grants and Subscriptions,5031,2rd Payment for delivery of commissioned service,11/01/2023,0175185,"£11,000.00",Revenue,Home-Start Central Lancashire Ltd,20585,,
Chorley Borough Council,http://statistics.data.gov.uk/id/local-authority/30UE,Central Support Services,1009,CUST - Customer & Digital,Telephones - Other,40085,Communication and Computing,5028,Anywhere365 Corporate SA - Monthly  £368.35Anywhere365 Extension Window SA (Monthly)  £44.38Enterprise feature pack for Chorley S,18/01/2023,0175171,£557.70,Revenue,Hybrit LLP,77925,,
Chorley Borough Council,http://statistics.data.gov.uk/id/local-authority/30UE,Corporate Management,1008,GOVN - Policy & Governance,Other Fees,40212,Miscellaneous Expenses,5034,Subsidy for the provision of a meals on wheels service in Chorley up to 4 December 2022,18/01/2023,0175108,"£1,981.88",Revenue,I Care GB Ltd,77247,,
Chorley Borough Council,http://statistics.data.gov.uk/id/local-authority/30UE,Corporate Management,1008,GOVN - Policy & Governance,Other Fees,40212,Miscellaneous Expenses,5034,Subsidy for the provision of a meals on wheels service in Chorley up to 31 December 2022,25/01/2023,0175298,"£1,832.25",Revenue,I Care GB Ltd,77247,,
Chorley Borough Council,http://statistics.data.gov.uk/id/local-authority/30UE,Business Support,1095,GROW - Commercial & Property,Refreshments,40036,Catering,5024,"Per your invoice 9069011222, milk deliveries for November 2022",04/01/2023,0175033,£384.40,Revenue,I W Critchley & Son,77615,,
Chorley Borough Council,http://statistics.data.gov.uk/id/local-authority/30UE,Recreation & Sport,1037,GROW - Commercial & Property,Defibrillator Purchase / Maintenance,40251,"Equipment, Furniture & Materia",5023,Cardiac Science Powerheart G5 G5 Battery XBTAED001A £276 +VAT,11/01/2023,0175049,£276.00,Revenue,Imperative Training Limited T/A Defibshop,78355,,
Chorley Borough Council,http://statistics.data.gov.uk/id/local-authority/30UE,Recreation & Sport,1037,GROW - Commercial & Property,Defibrillator Purchase / Maintenance,40251,"Equipment, Furniture & Materia",5023,G3 Battery - 9146-001 £260 +VAT,11/01/2023,0175050,£260.00,Revenue,Imperative Training Limited T/A Defibshop,78355,,
Chorley Borough Council,http://statistics.data.gov.uk/id/local-authority/30UE,Recreation & Sport,1037,GROW - Commercial & Property,Defibrillator Purchase / Maintenance,40251,"Equipment, Furniture & Materia",5023,"Adult Pads 9131-001  £37.50 +VAT per set

Two sets required total £75.00",11/01/2023,0175050,£75.00,Revenue,Imperative Training Limited T/A Defibshop,78355,,
Chorley Borough Council,http://statistics.data.gov.uk/id/local-authority/30UE,Recreation & Sport,1037,GROW - Commercial & Property,Defibrillator Purchase / Maintenance,40251,"Equipment, Furniture & Materia",5023,G5 Battery XBTAED001A £260 +VAT,11/01/2023,0175050,£260.00,Revenue,Imperative Training Limited T/A Defibshop,78355,,
Chorley Borough Council,http://statistics.data.gov.uk/id/local-authority/30UE,Recreation & Sport,1037,GROW - Commercial & Property,Defibrillator Purchase / Maintenance,40251,"Equipment, Furniture & Materia",5023,"G5 Battery
XBTAED001A
£276
+VAT",25/01/2023,0175461,£276.00,Revenue,Imperative Training Limited T/A Defibshop,78355,,
Chorley Borough Council,http://statistics.data.gov.uk/id/local-authority/30UE,Control Accounts,Control,System,Manual Control Account,00001,Balance Sheet,Balance,,11/01/2023,0174755,"£1,812.00",Revenue,Inland Revenue 065py00102078,17445,,
Chorley Borough Council,http://statistics.data.gov.uk/id/local-authority/30UE,Control Accounts,Control,System,Manual Control Account,00001,Balance Sheet,Balance,,11/01/2023,0175048,"£1,065.98",Revenue,Inland Revenue 065py00102078,17445,,
Chorley Borough Council,http://statistics.data.gov.uk/id/local-authority/30UE,Business Support,1095,GROW - Commercial & Property,General Repairs - Reactive,20004,Repairs Maintenance & Alts,5005,EPC for NAME REDACTED as agreed with NAME REDACTED,11/01/2023,0175217,£385.00,Revenue,Inprova Energy Ltd,77722,,
Chorley Borough Council,http://statistics.data.gov.uk/id/local-authority/30UE,Tourism,1039,GOVN - Policy & Governance,Publicity - Advertising,40157,Miscellaneous Expenses,5034,"1 x Full Page in The PR Pointer, December edition to promote Chorley`s Winter Wonderland",11/01/2023,0175060,£403.00,Revenue,Jam Design and Publications Ltd,76061,,
Chorley Borough Council,http://statistics.data.gov.uk/id/local-authority/30UE,Central Support Services,1009,GROW - Commercial & Property,Planned Maintenance,20006,Repairs Maintenance & Alts,5005,Market gutter clearing EST0552 To clear out approx 380m of guttering marked out at market. Walk chorley using the 22m truck mount,18/01/2023,0174877,"£2,400.00",Revenue,JJL Windows and Exterior Cleaning,80931,,
Chorley Borough Council,http://statistics.data.gov.uk/id/local-authority/30UE,Business Support,1095,GROW - Commercial & Property,Planned Maintenance,20006,Repairs Maintenance & Alts,5005,Market Walk - Commercial gutter cleaning EST0569 To clear out approx 315m of troughs and guttering on the canopys at Market Walk ,11/01/2023,0174930,"£1,600.00",Revenue,JJL Windows and Exterior Cleaning,80931,,
Chorley Borough Council,http://statistics.data.gov.uk/id/local-authority/30UE,Business Support,1095,GROW - Commercial & Property,Tools & Equipment - Purchase,40003,"Equipment, Furniture & Materia",5023,For the maintenance and services provided at Primrose gardens,04/01/2023,0174876,£333.09,Revenue,JLA Total Care LTD,78420,,
Chorley Borough Council,http://statistics.data.gov.uk/id/local-authority/30UE,Service Management & Support,1009,CUST - Customer & Digital,Supplies-Grounds Maintenance,40025,"Equipment, Furniture & Materia",5023,Supply 20 lengths of 4`` x 1.5`` @ 4.2m edging board,11/01/2023,0173027,£265.89,Revenue,John H Mayor & Sons Ltd,16635,,
Chorley Borough Council,http://statistics.data.gov.uk/id/local-authority/30UE,Culture & Heritage,1036,CUST - Customer & Digital,Exhibitions & Special Events,40158,Miscellaneous Expenses,5034,Supply 18ft Christmas tree. deliver to Bengal St,11/01/2023,0174790,£550.00,Revenue,John H Mayor & Sons Ltd,16635,,
Chorley Borough Council,http://statistics.data.gov.uk/id/local-authority/30UE,Capital,Capital,PLAN - Planning & Development,Main Contractor,03007,Capital Expenditure,Capital,Construction of a Sports Pavilion at Wigan Lane Playing Fields with associated infrastructure and landscaping as set out in the t,11/01/2023,0175081,"£25,355.18",Capital,John Wade Groundworks Ltd,76676,,
Chorley Borough Council,http://statistics.data.gov.uk/id/local-authority/30UE,Homelessness,1075,EARL - Communities,Grants to Voluntary Organisations,40124,Grants and Subscriptions,5031,URC - Ukraine Support Christmas Party 17th December 202218:00-22:00,11/01/2023,0175194,£380.00,Revenue,Kash.SJBLimited,78455,,
Chorley Borough Council,http://statistics.data.gov.uk/id/local-authority/30UE,Service Management & Support,1009,CUST - Customer & Digital,Entry Fees,40237,Miscellaneous Expenses,5034,Green Flag fee for Yarrow Valley Country Park 2022,11/01/2023,0175022,£389.00,Revenue,Keep Britain Tidy,22196,,
Chorley Borough Council,http://statistics.data.gov.uk/id/local-authority/30UE,Service Management & Support,1009,CUST - Customer & Digital,Entry Fees,40237,Miscellaneous Expenses,5034,Green Flag fee for Astley Park 2022,11/01/2023,0175023,£389.00,Revenue,Keep Britain Tidy,22196,,
Chorley Borough Council,http://statistics.data.gov.uk/id/local-authority/30UE,Central Support Services,1009,GOVN - Policy & Governance,Legal Fees,40171,Miscellaneous Expenses,5034,Settlement agreement for NAME REDACTED,25/01/2023,0175455,£350.00,Revenue,Kevills Solicitors,18532,,
Chorley Borough Council,http://statistics.data.gov.uk/id/local-authority/30UE,Homelessness,1075,EARL - Communities,Service Fees,40056,Services,5027,Provision of Young People`s Housing Drop in Service for ChorleyQuarter 4 (Jan - March 2023),25/01/2023,0172885,"£3,750.00",Revenue,Key Unlocking Futures Limited,61252,,
Chorley Borough Council,http://statistics.data.gov.uk/id/local-authority/30UE,Homelessness,1075,EARL - Communities,Service Fees,40056,Services,5027,Provision of Young People`s Housing Drop in Service for Chorley Quarter 3 (October - December 2022),25/01/2023,0175305,"£3,750.00",Revenue,Key Unlocking Futures Limited,61252,,
Chorley Borough Council,http://statistics.data.gov.uk/id/local-authority/30UE,Planning Policy,1092,PLAN - Planning & Development,Consultants` Fees,40077,Services,5027,Local Plan Support: Open Space & Playing Pitches,11/01/2023,0175130,"£3,450.00",Revenue,Knight Kavanah & Page,20440,,
Chorley Borough Council,http://statistics.data.gov.uk/id/local-authority/30UE,Central Support Services,1009,GROW - Commercial & Property,General Repairs - Reactive,20004,Repairs Maintenance & Alts,5005,ADDRESS REDACTED Property Clearance  £707.50Mattress Disposal Surcharge  £17.50Discount  -£130,18/01/2023,0174927,£725.00,Revenue,Lancashire Clearance Services Ltd,79462,,
Chorley Borough Council,http://statistics.data.gov.uk/id/local-authority/30UE,Business Support,1095,GROW - Commercial & Property,General Repairs - Reactive,20004,Repairs Maintenance & Alts,5005,Strawberry Fields  - Gas / Air Con / Plumbing  Reactive Repairs,18/01/2023,0174583,£328.44,Revenue,Lancashire Gas Services Ltd,78192,,
Chorley Borough Council,http://statistics.data.gov.uk/id/local-authority/30UE,Central Support Services,1009,GROW - Commercial & Property,General Repairs - Reactive,20004,Repairs Maintenance & Alts,5005,Union St   - Gas / Air Con / Plumbing  Reactive Repairs,18/01/2023,0174605,"£1,440.24",Revenue,Lancashire Gas Services Ltd,78192,,
Chorley Borough Council,http://statistics.data.gov.uk/id/local-authority/30UE,Central Support Services,1009,GROW - Commercial & Property,General Repairs - Reactive,20004,Repairs Maintenance & Alts,5005,Astley hall and Buildings   - Gas / Air Con / Plumbing  Reactive Repairs,18/01/2023,0174658,£527.28,Revenue,Lancashire Gas Services Ltd,78192,,
Chorley Borough Council,http://statistics.data.gov.uk/id/local-authority/30UE,Central Support Services,1009,GROW - Commercial & Property,General Repairs - Reactive,20004,Repairs Maintenance & Alts,5005,Astley hall and Buildings   - Gas / Air Con / Plumbing  Reactive Repairs,18/01/2023,0174659,£442.95,Revenue,Lancashire Gas Services Ltd,78192,,
Chorley Borough Council,http://statistics.data.gov.uk/id/local-authority/30UE,Central Support Services,1009,GROW - Commercial & Property,General Repairs - Reactive,20004,Repairs Maintenance & Alts,5005,Community Centres   - Gas / Air Con / Plumbing  Reactive Repairs,18/01/2023,0174662,"£1,020.70",Revenue,Lancashire Gas Services Ltd,78192,,
Chorley Borough Council,http://statistics.data.gov.uk/id/local-authority/30UE,Central Support Services,1009,GROW - Commercial & Property,General Repairs - Reactive,20004,Repairs Maintenance & Alts,5005,Community Centres   - Gas / Air Con / Plumbing  Reactive Repairs,18/01/2023,0174667,£304.00,Revenue,Lancashire Gas Services Ltd,78192,,
Chorley Borough Council,http://statistics.data.gov.uk/id/local-authority/30UE,Capital,Capital,GROW - Commercial & Property,Main Contractor,03007,Capital Expenditure,Capital,Brinscall Swimming Pool Quotation: QUO02910 Further to our recent visit to site to a report of a leak in the plantroom when the e,04/01/2023,0174758,"£3,608.00",Capital,Lancashire Gas Services Ltd,78192,,
Chorley Borough Council,http://statistics.data.gov.uk/id/local-authority/30UE,Central Support Services,1009,GROW - Commercial & Property,Planned Maintenance,20006,Repairs Maintenance & Alts,5005,Union St  - Heating and Air Con Planned Maintenance and remedials,18/01/2023,0174773,£729.00,Revenue,Lancashire Gas Services Ltd,78192,,
Chorley Borough Council,http://statistics.data.gov.uk/id/local-authority/30UE,Central Support Services,1009,GROW - Commercial & Property,Planned Maintenance,20006,Repairs Maintenance & Alts,5005,Primrose  - Heating and Air Con Planned Maintenance and remedials,18/01/2023,0174774,£718.00,Revenue,Lancashire Gas Services Ltd,78192,,
Chorley Borough Council,http://statistics.data.gov.uk/id/local-authority/30UE,Central Support Services,1009,GROW - Commercial & Property,Planned Maintenance,20006,Repairs Maintenance & Alts,5005,Primrose  - Heating and Air Con Planned Maintenance and remedials,18/01/2023,0174775,£373.21,Revenue,Lancashire Gas Services Ltd,78192,,
Chorley Borough Council,http://statistics.data.gov.uk/id/local-authority/30UE,Central Support Services,1009,GROW - Commercial & Property,General Repairs - Reactive,20004,Repairs Maintenance & Alts,5005,Primrose   - Gas / Air Con / Plumbing  Reactive Repairs,18/01/2023,0174776,"£1,888.70",Revenue,Lancashire Gas Services Ltd,78192,,
Chorley Borough Council,http://statistics.data.gov.uk/id/local-authority/30UE,Capital,Capital,GROW - Commercial & Property,Other Capital Related Fees,03024,Capital Expenditure,Capital,Market Hall Refurb works Plumb in new sinks. Be on site 8am and call Mike,04/01/2023,0174786,"£1,330.21",Capital,Lancashire Gas Services Ltd,78192,,
Chorley Borough Council,http://statistics.data.gov.uk/id/local-authority/30UE,Central Support Services,1009,GOVN - Policy & Governance,Redundancy Payments,16100,Indirect Employee Expenses,5002,Pension strain may 22 - NAME REDACTED,13/01/2023,0173490,"£117,754.32",Revenue,Lancashire Pensions Services DD ONLY,16696,,
Chorley Borough Council,http://statistics.data.gov.uk/id/local-authority/30UE,Economic Development,1096,GOVN - Policy & Governance,Redundancy Payments,16100,Indirect Employee Expenses,5002,Pension strain may 22 - NAME REDACTED,13/01/2023,0173490,£263.26,Revenue,Lancashire Pensions Services DD ONLY,16696,,
Chorley Borough Council,http://statistics.data.gov.uk/id/local-authority/30UE,Service Management & Support,1009,GOVN - Policy & Governance,Redundancy Payments,16100,Indirect Employee Expenses,5002,Pension strain may 22 - NAME REDACTED,13/01/2023,0173491,"£3,764.40",Revenue,Lancashire Pensions Services DD ONLY,16696,,
Chorley Borough Council,http://statistics.data.gov.uk/id/local-authority/30UE,Precepts and Collection Fund,Precepts,GOVN - Policy & Governance,LCFA Precept,02011,Precepts & Collection Fund,Precept,LCFA Council Tax and Business Rates Precept,13/01/2023,0173413,"£315,114.00",Revenue,Lancs Combined Fire Authority,17768,,
Chorley Borough Council,http://statistics.data.gov.uk/id/local-authority/30UE,Precepts and Collection Fund,Precepts,GOVN - Policy & Governance,LCFA Precept,02011,Precepts & Collection Fund,Precept,LCFA CTax precepts,13/01/2023,0174358,"£297,967.00",Revenue,Lancs Combined Fire Authority,17768,,
Chorley Borough Council,http://statistics.data.gov.uk/id/local-authority/30UE,Collection Fund Revenue Accoun,,GOVN - Policy & Governance,NNDR Fire Share,02037,Precepts & Collection Fund,Precept,LCFA BRates precepts,13/01/2023,0174358,"£17,147.00",Revenue,Lancs Combined Fire Authority,17768,,
Chorley Borough Council,http://statistics.data.gov.uk/id/local-authority/30UE,Precepts and Collection Fund,Precepts,GOVN - Policy & Governance,LCFA Precept,02011,Precepts & Collection Fund,Precept,LCFA Council tax precept,13/01/2023,0175213,"£297,967.00",Revenue,Lancs Combined Fire Authority,17768,,
Chorley Borough Council,http://statistics.data.gov.uk/id/local-authority/30UE,Collection Fund Revenue Accoun,,GOVN - Policy & Governance,NNDR Fire Share,02037,Precepts & Collection Fund,Precept,LCFA Business rates precepts,13/01/2023,0175213,"£17,147.00",Revenue,Lancs Combined Fire Authority,17768,,
Chorley Borough Council,http://statistics.data.gov.uk/id/local-authority/30UE,Planning Policy,1092,PLAN - Planning & Development,Consultants` Fees,40077,Services,5027,"Assistance in progressing work on the Central Lancashire Local Plan Land Use Study, and Development of Policies and Topic Paper",11/01/2023,0175131,"£19,458.00",Revenue,Land Use Consultants (LUC) Ltd,81849,,
Chorley Borough Council,http://statistics.data.gov.uk/id/local-authority/30UE,Central Support Services,1009,GROW - Commercial & Property,General Repairs - Reactive,20004,Repairs Maintenance & Alts,5005,Site investigation works to the War memorial in Astley Park.  Following site investigation please ensure site is reinstated to or,25/01/2023,0173425,£933.98,Revenue,Landscape Engineering Ltd,54727,,
Chorley Borough Council,http://statistics.data.gov.uk/id/local-authority/30UE,Capital,Capital,PLAN - Planning & Development,Main Contractor,03007,Capital Expenditure,Capital,Final retention payment - NAME REDACTED West Way,13/01/2023,0174613,"£28,285.18",Capital,Lano Sports,80704,,
Chorley Borough Council,http://statistics.data.gov.uk/id/local-authority/30UE,Central Support Services,1009,GOVN - Policy & Governance,Consultants` Fees,40077,Services,5027,"Asset Valuation for the 2021 - 2022 Statement of Accounts Remaining 20% of the balance Valuation of 1 Asset (GP Surgery, Whittle-",18/01/2023,0175076,"£4,500.00",Revenue,Lea Hough & Co LLP,76318,,
Chorley Borough Council,http://statistics.data.gov.uk/id/local-authority/30UE,Capital,Capital,EARL - Communities,Grants,03002,Capital Expenditure,Capital,NAME REDACTED work on behalf of Chorley CIA team,18/01/2023,0175241,"£6,337.50",Capital,Liberata UK,20716,,
Chorley Borough Council,http://statistics.data.gov.uk/id/local-authority/30UE,Capital,Capital,GROW - Commercial & Property,Main Contractor,03007,Capital Expenditure,Capital,Project management for Astley Restoration Project,11/01/2023,0175219,"£1,900.00",Capital,Linchpin Ltd,80779,,
Chorley Borough Council,http://statistics.data.gov.uk/id/local-authority/30UE,Capital,Capital,GROW - Commercial & Property,Main Contractor,03007,Capital Expenditure,Capital,Astley Refurb Project Management,11/01/2023,0175220,"£1,550.00",Capital,Linchpin Ltd,80779,,
Chorley Borough Council,http://statistics.data.gov.uk/id/local-authority/30UE,Capital,Capital,GROW - Commercial & Property,Main Contractor,03007,Capital Expenditure,Capital,Astley Refurb Project Management,25/01/2023,0175481,"£1,300.00",Capital,Linchpin Ltd,80779,,
Chorley Borough Council,http://statistics.data.gov.uk/id/local-authority/30UE,Central Support Services,1009,GOVN - Policy & Governance,HR Approved Occ Health Fees,15201,Indirect Employee Expenses,5002,Counselling for staff in November 2022,18/01/2023,0175132,£765.00,Revenue,Livewell Counselling Service,63084,,
Chorley Borough Council,http://statistics.data.gov.uk/id/local-authority/30UE,Corporate Management,1008,GROW - Commercial & Property,Promotional Expenses,40159,Miscellaneous Expenses,5034,To provide entertainment for the Christmas Fun Thursday at Market Walk on the 22nd Dec 22,04/01/2023,0174498,£550.00,Revenue,Louby Lou Ltd,76335,,
Chorley Borough Council,http://statistics.data.gov.uk/id/local-authority/30UE,Business Support,1095,GROW - Commercial & Property,Stationery,40050,"Printing, Stationery & General",5026,Tatton Gardens initial stationary order,25/01/2023,0175261,"£2,777.66",Revenue,Lyreco UK Ltd,17623,,
Chorley Borough Council,http://statistics.data.gov.uk/id/local-authority/30UE,Business Support,1095,GROW - Commercial & Property,Stationery,40050,"Printing, Stationery & General",5026,,25/01/2023,0175261,£97.30,Revenue,Lyreco UK Ltd,17623,,
Chorley Borough Council,http://statistics.data.gov.uk/id/local-authority/30UE,Homelessness,1075,GROW - Commercial & Property,Stationery,40050,"Printing, Stationery & General",5026,1 x Brother TN-247 Black ink cartridge 11.081.036 @ £56.90 each 1x Brother TN-247C Cyan ink cartridge 11.081.047 @ £65.91 each  1,25/01/2023,0175262,£277.03,Revenue,Lyreco UK Ltd,17623,,
Chorley Borough Council,http://statistics.data.gov.uk/id/local-authority/30UE,Service Management & Support,1009,CUST - Customer & Digital,Grounds Maintenance Contractor,20043,Grounds Maintenance Costs,5013,Walkers Tree Services Invoice 66,11/01/2023,0175133,"£2,950.00",Revenue,NAME REDACTED,62044,,
Chorley Borough Council,http://statistics.data.gov.uk/id/local-authority/30UE,Building Control,1090,PLAN - Planning & Development,Agency Staff,13000,Direct Employee Expenses,5001,Commenced 17.10.2022 agency fees for NAME REDACTED 37 hours p/w and NAME REDACTED 24 hours p/w until end of financial year 22/23,11/01/2023,0175089,"£2,100.00",Revenue,Matchtech,77343,,
Chorley Borough Council,http://statistics.data.gov.uk/id/local-authority/30UE,Building Control,1090,PLAN - Planning & Development,Agency Staff,13000,Direct Employee Expenses,5001,Commenced 17.10.2022 agency fees for NAME REDACTED 37 hours p/w and NAME REDACTED 24 hours p/w until end of financial year 22/23,11/01/2023,0175090,"£2,100.00",Revenue,Matchtech,77343,,
Chorley Borough Council,http://statistics.data.gov.uk/id/local-authority/30UE,Building Control,1090,PLAN - Planning & Development,Agency Staff,13000,Direct Employee Expenses,5001,Commenced 17.10.2022 agency fees for NAME REDACTED 37 hours p/w and NAME REDACTED 24 hours p/w until end of financial year 22/23,11/01/2023,0175091,"£1,344.00",Revenue,Matchtech,77343,,
Chorley Borough Council,http://statistics.data.gov.uk/id/local-authority/30UE,Building Control,1090,PLAN - Planning & Development,Agency Staff,13000,Direct Employee Expenses,5001,Commenced 17.10.2022 agency fees for NAME REDACTED 37 hours p/w and NAME REDACTED 24 hours p/w until end of financial year 22/23,11/01/2023,0175199,"£1,344.00",Revenue,Matchtech,77343,,
Chorley Borough Council,http://statistics.data.gov.uk/id/local-authority/30UE,Building Control,1090,PLAN - Planning & Development,Agency Staff,13000,Direct Employee Expenses,5001,Commenced 17.10.2022 agency fees for NAME REDACTED 37 hours p/w and NAME REDACTED 24 hours p/w until end of financial year 22/23,11/01/2023,0175200,"£1,344.00",Revenue,Matchtech,77343,,
Chorley Borough Council,http://statistics.data.gov.uk/id/local-authority/30UE,Building Control,1090,PLAN - Planning & Development,Agency Staff,13000,Direct Employee Expenses,5001,Commenced 17.10.2022 agency fees for NAME REDACTED 37 hours p/w and NAME REDACTED 24 hours p/w until end of financial year 22/23,11/01/2023,0175201,£840.00,Revenue,Matchtech,77343,,
Chorley Borough Council,http://statistics.data.gov.uk/id/local-authority/30UE,Building Control,1090,PLAN - Planning & Development,Agency Staff,13000,Direct Employee Expenses,5001,Commenced 17.10.2022 agency fees for NAME REDACTED 37 hours p/w and NAME REDACTED 24 hours p/w until end of financial year 22/23,25/01/2023,0175294,"£1,260.00",Revenue,Matchtech,77343,,
Chorley Borough Council,http://statistics.data.gov.uk/id/local-authority/30UE,Building Control,1090,PLAN - Planning & Development,Agency Staff,13000,Direct Employee Expenses,5001,Commenced 17.10.2022 agency fees for NAME REDACTED 37 hours p/w and NAME REDACTED 24 hours p/w until end of financial year 22/23,25/01/2023,0175295,"£1,344.00",Revenue,Matchtech,77343,,
Chorley Borough Council,http://statistics.data.gov.uk/id/local-authority/30UE,Central Support Services,1009,GROW - Commercial & Property,Planned Maintenance,20006,Repairs Maintenance & Alts,5005,Astley Hall and Buildings  - Monthly Water Monitoring 12 mths @ £75pcm,11/01/2023,0175225,£75.00,Revenue,Maxigiene Environmental Services Ltd,67160,,
Chorley Borough Council,http://statistics.data.gov.uk/id/local-authority/30UE,Central Support Services,1009,GROW - Commercial & Property,Planned Maintenance,20006,Repairs Maintenance & Alts,5005,Parks Buildings  - Monthly Water Monitoring 12 mths @ £40pcm,11/01/2023,0175225,£40.00,Revenue,Maxigiene Environmental Services Ltd,67160,,
Chorley Borough Council,http://statistics.data.gov.uk/id/local-authority/30UE,Central Support Services,1009,GROW - Commercial & Property,Planned Maintenance,20006,Repairs Maintenance & Alts,5005,Community Centres  - Monthly Water Monitoring 12 mths @ £169.16pcm,11/01/2023,0175225,£169.16,Revenue,Maxigiene Environmental Services Ltd,67160,,
Chorley Borough Council,http://statistics.data.gov.uk/id/local-authority/30UE,Central Support Services,1009,GROW - Commercial & Property,Planned Maintenance,20006,Repairs Maintenance & Alts,5005,wc`s   - Monthly Water Monitoring 12 mths @ £65pcm,11/01/2023,0175225,£65.00,Revenue,Maxigiene Environmental Services Ltd,67160,,
Chorley Borough Council,http://statistics.data.gov.uk/id/local-authority/30UE,Central Support Services,1009,GROW - Commercial & Property,Planned Maintenance,20006,Repairs Maintenance & Alts,5005,sports pitches and pavilions   - Monthly Water Monitoring 12 mths @ £72.08pcm,11/01/2023,0175225,£47.08,Revenue,Maxigiene Environmental Services Ltd,67160,,
Chorley Borough Council,http://statistics.data.gov.uk/id/local-authority/30UE,Central Support Services,1009,GROW - Commercial & Property,Planned Maintenance,20006,Repairs Maintenance & Alts,5005,Bengal St  - Monthly Water Monitoring 12 mths @ £25pcm,11/01/2023,0175225,£25.00,Revenue,Maxigiene Environmental Services Ltd,67160,,
Chorley Borough Council,http://statistics.data.gov.uk/id/local-authority/30UE,Central Support Services,1009,GROW - Commercial & Property,Planned Maintenance,20006,Repairs Maintenance & Alts,5005,chorley cemetery  - Monthly Water Monitoring 12 mths @ £20pcm,11/01/2023,0175225,£20.00,Revenue,Maxigiene Environmental Services Ltd,67160,,
Chorley Borough Council,http://statistics.data.gov.uk/id/local-authority/30UE,Community Development,1097,GROW - Commercial & Property,Planned Maintenance,20006,Repairs Maintenance & Alts,5005,ADDRESS REDACTED  - Monthly Water Monitoring 12 mths @ £20pcm,11/01/2023,0175225,£20.00,Revenue,Maxigiene Environmental Services Ltd,67160,,
Chorley Borough Council,http://statistics.data.gov.uk/id/local-authority/30UE,Business Support,1095,GROW - Commercial & Property,Planned Maintenance,20006,Repairs Maintenance & Alts,5005,NAME REDACTED Market Walk  - Monthly Water Monitoring 12 mths @ £20pcm,11/01/2023,0175225,£20.00,Revenue,Maxigiene Environmental Services Ltd,67160,,
Chorley Borough Council,http://statistics.data.gov.uk/id/local-authority/30UE,Central Support Services,1009,GROW - Commercial & Property,Planned Maintenance,20006,Repairs Maintenance & Alts,5005,Cotswold  - Monthly Water Monitoring 12 mths @ £20pcm,11/01/2023,0175225,£20.00,Revenue,Maxigiene Environmental Services Ltd,67160,,
Chorley Borough Council,http://statistics.data.gov.uk/id/local-authority/30UE,Central Support Services,1009,GROW - Commercial & Property,Planned Maintenance,20006,Repairs Maintenance & Alts,5005,Market  - Monthly Water Monitoring 12 mths @ £20pcm,11/01/2023,0175225,£20.00,Revenue,Maxigiene Environmental Services Ltd,67160,,
Chorley Borough Council,http://statistics.data.gov.uk/id/local-authority/30UE,Central Support Services,1009,GROW - Commercial & Property,Planned Maintenance,20006,Repairs Maintenance & Alts,5005,Primrose  - Monthly Water Monitoring 12 mths @ £30pcm,11/01/2023,0175225,£30.00,Revenue,Maxigiene Environmental Services Ltd,67160,,
Chorley Borough Council,http://statistics.data.gov.uk/id/local-authority/30UE,Business Support,1095,GROW - Commercial & Property,Planned Maintenance,20006,Repairs Maintenance & Alts,5005,Strawberry Fields  - Monthly Water Monitoring 12 mths @ £30pcm,11/01/2023,0175225,£30.00,Revenue,Maxigiene Environmental Services Ltd,67160,,
Chorley Borough Council,http://statistics.data.gov.uk/id/local-authority/30UE,Central Support Services,1009,GROW - Commercial & Property,Planned Maintenance,20006,Repairs Maintenance & Alts,5005,Town Hall  - Monthly Water Monitoring 12 mths @ £25pcm,11/01/2023,0175225,£25.00,Revenue,Maxigiene Environmental Services Ltd,67160,,
Chorley Borough Council,http://statistics.data.gov.uk/id/local-authority/30UE,Central Support Services,1009,GROW - Commercial & Property,Planned Maintenance,20006,Repairs Maintenance & Alts,5005,Union St  - Monthly Water Monitoring 12 mths @ £25pcm,11/01/2023,0175225,£25.00,Revenue,Maxigiene Environmental Services Ltd,67160,,
Chorley Borough Council,http://statistics.data.gov.uk/id/local-authority/30UE,Central Support Services,1009,GROW - Commercial & Property,Planned Maintenance,20006,Repairs Maintenance & Alts,5005,Westway  - Monthly Water Monitoring 12 mths @ £30pcm,11/01/2023,0175225,£30.00,Revenue,Maxigiene Environmental Services Ltd,67160,,
Chorley Borough Council,http://statistics.data.gov.uk/id/local-authority/30UE,Central Support Services,1009,GROW - Commercial & Property,Planned Maintenance,20006,Repairs Maintenance & Alts,5005,Astley Hall and Buildings  - Monthly Water Monitoring 12 mths @ £75pcm,25/01/2023,0175479,£75.00,Revenue,Maxigiene Environmental Services Ltd,67160,,
Chorley Borough Council,http://statistics.data.gov.uk/id/local-authority/30UE,Central Support Services,1009,GROW - Commercial & Property,Planned Maintenance,20006,Repairs Maintenance & Alts,5005,Parks Buildings  - Monthly Water Monitoring 12 mths @ £40pcm,25/01/2023,0175479,£40.00,Revenue,Maxigiene Environmental Services Ltd,67160,,
Chorley Borough Council,http://statistics.data.gov.uk/id/local-authority/30UE,Central Support Services,1009,GROW - Commercial & Property,Planned Maintenance,20006,Repairs Maintenance & Alts,5005,Community Centres  - Monthly Water Monitoring 12 mths @ £169.16pcm,25/01/2023,0175479,£169.16,Revenue,Maxigiene Environmental Services Ltd,67160,,
Chorley Borough Council,http://statistics.data.gov.uk/id/local-authority/30UE,Central Support Services,1009,GROW - Commercial & Property,Planned Maintenance,20006,Repairs Maintenance & Alts,5005,wc`s   - Monthly Water Monitoring 12 mths @ £65pcm,25/01/2023,0175479,£65.00,Revenue,Maxigiene Environmental Services Ltd,67160,,
Chorley Borough Council,http://statistics.data.gov.uk/id/local-authority/30UE,Central Support Services,1009,GROW - Commercial & Property,Planned Maintenance,20006,Repairs Maintenance & Alts,5005,sports pitches and pavilions   - Monthly Water Monitoring 12 mths @ £72.08pcm,25/01/2023,0175479,£47.08,Revenue,Maxigiene Environmental Services Ltd,67160,,
Chorley Borough Council,http://statistics.data.gov.uk/id/local-authority/30UE,Central Support Services,1009,GROW - Commercial & Property,Planned Maintenance,20006,Repairs Maintenance & Alts,5005,Bengal St  - Monthly Water Monitoring 12 mths @ £25pcm,25/01/2023,0175479,£25.00,Revenue,Maxigiene Environmental Services Ltd,67160,,
Chorley Borough Council,http://statistics.data.gov.uk/id/local-authority/30UE,Central Support Services,1009,GROW - Commercial & Property,Planned Maintenance,20006,Repairs Maintenance & Alts,5005,chorley cemetery  - Monthly Water Monitoring 12 mths @ £20pcm,25/01/2023,0175479,£20.00,Revenue,Maxigiene Environmental Services Ltd,67160,,
Chorley Borough Council,http://statistics.data.gov.uk/id/local-authority/30UE,Community Development,1097,GROW - Commercial & Property,Planned Maintenance,20006,Repairs Maintenance & Alts,5005,ADDRESS REDACTED - Monthly Water Monitoring 12 mths @ £20pcm,25/01/2023,0175479,£20.00,Revenue,Maxigiene Environmental Services Ltd,67160,,
Chorley Borough Council,http://statistics.data.gov.uk/id/local-authority/30UE,Business Support,1095,GROW - Commercial & Property,Planned Maintenance,20006,Repairs Maintenance & Alts,5005,MW   Market Walk  - Monthly Water Monitoring 12 mths @ £20pcm,25/01/2023,0175479,£20.00,Revenue,Maxigiene Environmental Services Ltd,67160,,
Chorley Borough Council,http://statistics.data.gov.uk/id/local-authority/30UE,Central Support Services,1009,GROW - Commercial & Property,Planned Maintenance,20006,Repairs Maintenance & Alts,5005,Cotswold  - Monthly Water Monitoring 12 mths @ £20pcm,25/01/2023,0175479,£20.00,Revenue,Maxigiene Environmental Services Ltd,67160,,
Chorley Borough Council,http://statistics.data.gov.uk/id/local-authority/30UE,Central Support Services,1009,GROW - Commercial & Property,Planned Maintenance,20006,Repairs Maintenance & Alts,5005,Market  - Monthly Water Monitoring 12 mths @ £20pcm,25/01/2023,0175479,£20.00,Revenue,Maxigiene Environmental Services Ltd,67160,,
Chorley Borough Council,http://statistics.data.gov.uk/id/local-authority/30UE,Central Support Services,1009,GROW - Commercial & Property,Planned Maintenance,20006,Repairs Maintenance & Alts,5005,Primrose  - Monthly Water Monitoring 12 mths @ £30pcm,25/01/2023,0175479,£30.00,Revenue,Maxigiene Environmental Services Ltd,67160,,
Chorley Borough Council,http://statistics.data.gov.uk/id/local-authority/30UE,Business Support,1095,GROW - Commercial & Property,Planned Maintenance,20006,Repairs Maintenance & Alts,5005,Strawberry Fields  - Monthly Water Monitoring 12 mths @ £30pcm,25/01/2023,0175479,£30.00,Revenue,Maxigiene Environmental Services Ltd,67160,,
Chorley Borough Council,http://statistics.data.gov.uk/id/local-authority/30UE,Central Support Services,1009,GROW - Commercial & Property,Planned Maintenance,20006,Repairs Maintenance & Alts,5005,Town Hall  - Monthly Water Monitoring 12 mths @ £25pcm,25/01/2023,0175479,£25.00,Revenue,Maxigiene Environmental Services Ltd,67160,,
Chorley Borough Council,http://statistics.data.gov.uk/id/local-authority/30UE,Central Support Services,1009,GROW - Commercial & Property,Planned Maintenance,20006,Repairs Maintenance & Alts,5005,Union St  - Monthly Water Monitoring 12 mths @ £25pcm,25/01/2023,0175479,£25.00,Revenue,Maxigiene Environmental Services Ltd,67160,,
Chorley Borough Council,http://statistics.data.gov.uk/id/local-authority/30UE,Central Support Services,1009,GROW - Commercial & Property,Planned Maintenance,20006,Repairs Maintenance & Alts,5005,Westway  - Monthly Water Monitoring 12 mths @ £30pcm,25/01/2023,0175479,£30.00,Revenue,Maxigiene Environmental Services Ltd,67160,,
Chorley Borough Council,http://statistics.data.gov.uk/id/local-authority/30UE,Central Support Services,1009,GOVN - Policy & Governance,IT Software - Annual Licences,40101,Communication and Computing,5028,Chorley Council and South Ribble Borough Council NAME REDACTED integrations as discussed on call date 25 April 2022. Total 6 days,18/01/2023,0175246,"£1,080.00",Revenue,MHR International UK Ltd,84982,,
Chorley Borough Council,http://statistics.data.gov.uk/id/local-authority/30UE,Central Support Services,1009,GROW - Commercial & Property,General Repairs - Reactive,20004,Repairs Maintenance & Alts,5005,Market   -  Drainage  Reactive Repairs,11/01/2023,0175229,£280.00,Revenue,NAME REDACTED,78294,,
Chorley Borough Council,http://statistics.data.gov.uk/id/local-authority/30UE,Business Support,1095,GROW - Commercial & Property,General Repairs - Reactive,20004,Repairs Maintenance & Alts,5005,Market Walk - Drainage Reactive Repairs,11/01/2023,0175231,£280.00,Revenue,NAME REDACTED,78294,,
Chorley Borough Council,http://statistics.data.gov.uk/id/local-authority/30UE,Central Support Services,1009,GROW - Commercial & Property,General Repairs - Reactive,20004,Repairs Maintenance & Alts,5005,Astley Hall and Buildings   -  Drainage  Reactive Repairs,11/01/2023,0175232,£320.00,Revenue,NAME REDACTED,78294,,
Chorley Borough Council,http://statistics.data.gov.uk/id/local-authority/30UE,Central Support Services,1009,GROW - Commercial & Property,General Repairs - Reactive,20004,Repairs Maintenance & Alts,5005,Parks   -  Drainage  Reactive Repairs,11/01/2023,0175233,£280.00,Revenue,NAME REDACTED,78294,,
Chorley Borough Council,http://statistics.data.gov.uk/id/local-authority/30UE,Central Support Services,1009,GROW - Commercial & Property,General Repairs - Reactive,20004,Repairs Maintenance & Alts,5005,Cemeteries   -  Drainage  Reactive Repairs,11/01/2023,0175234,£280.00,Revenue,NAME REDACTED,78294,,
Chorley Borough Council,http://statistics.data.gov.uk/id/local-authority/30UE,Central Support Services,1009,GROW - Commercial & Property,General Repairs - Reactive,20004,Repairs Maintenance & Alts,5005,Infrastructure - Drainage Reactive Repairs,11/01/2023,0175235,£280.00,Revenue,NAME REDACTED,78294,,
Chorley Borough Council,http://statistics.data.gov.uk/id/local-authority/30UE,Business Support,1095,GROW - Commercial & Property,General Repairs - Reactive,20004,Repairs Maintenance & Alts,5005,Market Walk - Drainage Reactive Repairs,11/01/2023,0175236,£280.00,Revenue,NAME REDACTED,78294,,
Chorley Borough Council,http://statistics.data.gov.uk/id/local-authority/30UE,Business Support,1095,GROW - Commercial & Property,General Repairs - Reactive,20004,Repairs Maintenance & Alts,5005,Market Walk - Drainage Reactive Repairs,18/01/2023,0175277,£280.00,Revenue,NAME REDACTED,78294,,
Chorley Borough Council,http://statistics.data.gov.uk/id/local-authority/30UE,Service Management & Support,1009,CUST - Customer & Digital,Maintenance Street Furniture,20055,Grounds Maintenance Costs,5013,1x Willow Close (on rails) 1x Rowan Croft (on rails) 1x Moss Lane (on rails) 1x Kielder Gardens 1-4 (on rails) 1x Kielder Gardens,11/01/2023,0175024,£383.50,Revenue,Midland Signs (Leicester) Ltd,16606,,
Chorley Borough Council,http://statistics.data.gov.uk/id/local-authority/30UE,General Government Grants,,GOVN - Policy & Governance,Revenue Support Grant,69000,Income not in NCOS,,Revenue Support Group,13/01/2023,0173488,-£38.00,Revenue,Ministry of Housing Communities & Local Government,16280,,
Chorley Borough Council,http://statistics.data.gov.uk/id/local-authority/30UE,Collection Fund Revenue Accoun,,GOVN - Policy & Governance,NNDR Central Share,02034,Precepts & Collection Fund,Precept,Central Share BR,13/01/2023,0173488,"£920,618.00",Revenue,Ministry of Housing Communities & Local Government,16280,,
Chorley Borough Council,http://statistics.data.gov.uk/id/local-authority/30UE,Collection Fund Revenue Accoun,,GOVN - Policy & Governance,NNDR Central Share,02034,Precepts & Collection Fund,Precept,Defecit Collection Fund,13/01/2023,0173488,"-£234,714.00",Revenue,Ministry of Housing Communities & Local Government,16280,,
Chorley Borough Council,http://statistics.data.gov.uk/id/local-authority/30UE,General Government Grants,,GOVN - Policy & Governance,Revenue Support Grant,69000,Income not in NCOS,,revenue support grant,13/01/2023,0174191,-£37.00,Revenue,Ministry of Housing Communities & Local Government,16280,,
Chorley Borough Council,http://statistics.data.gov.uk/id/local-authority/30UE,Collection Fund Revenue Accoun,,GOVN - Policy & Governance,NNDR Central Share,02034,Precepts & Collection Fund,Precept,central share br,13/01/2023,0174191,"£920,618.00",Revenue,Ministry of Housing Communities & Local Government,16280,,
Chorley Borough Council,http://statistics.data.gov.uk/id/local-authority/30UE,Collection Fund Revenue Accoun,,GOVN - Policy & Governance,NNDR Central Share,02034,Precepts & Collection Fund,Precept,deficit collection fund,13/01/2023,0174191,"-£234,715.00",Revenue,Ministry of Housing Communities & Local Government,16280,,
Chorley Borough Council,http://statistics.data.gov.uk/id/local-authority/30UE,General Government Grants,,GOVN - Policy & Governance,Revenue Support Grant,69000,Income not in NCOS,,Revenue support grant,13/01/2023,0174987,-£38.00,Revenue,Ministry of Housing Communities & Local Government,16280,,
Chorley Borough Council,http://statistics.data.gov.uk/id/local-authority/30UE,Collection Fund Revenue Accoun,,GOVN - Policy & Governance,NNDR Central Share,02034,Precepts & Collection Fund,Precept,Central Share BR,13/01/2023,0174987,"£920,618.00",Revenue,Ministry of Housing Communities & Local Government,16280,,
Chorley Borough Council,http://statistics.data.gov.uk/id/local-authority/30UE,Collection Fund Revenue Accoun,,GOVN - Policy & Governance,NNDR Central Share,02034,Precepts & Collection Fund,Precept,Deficit collection fund,13/01/2023,0174987,"-£234,715.00",Revenue,Ministry of Housing Communities & Local Government,16280,,
Chorley Borough Council,http://statistics.data.gov.uk/id/local-authority/30UE,Collection Fund Revenue Accoun,,GOVN - Policy & Governance,Transitional Protection,02033,Precepts & Collection Fund,Precept,Transitional Relief,13/01/2023,0174987,£0.00,Revenue,Ministry of Housing Communities & Local Government,16280,,
Chorley Borough Council,http://statistics.data.gov.uk/id/local-authority/30UE,Capital,Capital,EARL - Communities,Grants,03002,Capital Expenditure,Capital,NAME REDACTED,11/01/2023,0174986,£643.33,Capital,Mint Northwest Ltd,65607,,
Chorley Borough Council,http://statistics.data.gov.uk/id/local-authority/30UE,Private Sector HSG Renewal,1073,EARL - Communities,External Contractor,40198,Miscellaneous Expenses,5034,Ref 6,18/01/2023,0175239,£68.00,Revenue,Mobility Care Services,70841,,
Chorley Borough Council,http://statistics.data.gov.uk/id/local-authority/30UE,Private Sector HSG Renewal,1073,EARL - Communities,External Contractor,40198,Miscellaneous Expenses,5034,Ref 5,18/01/2023,0175239,£68.00,Revenue,Mobility Care Services,70841,,
Chorley Borough Council,http://statistics.data.gov.uk/id/local-authority/30UE,Private Sector HSG Renewal,1073,EARL - Communities,External Contractor,40198,Miscellaneous Expenses,5034,Ref 4,18/01/2023,0175239,£68.00,Revenue,Mobility Care Services,70841,,
Chorley Borough Council,http://statistics.data.gov.uk/id/local-authority/30UE,Private Sector HSG Renewal,1073,EARL - Communities,External Contractor,40198,Miscellaneous Expenses,5034,Ref 3,18/01/2023,0175239,£68.00,Revenue,Mobility Care Services,70841,,
Chorley Borough Council,http://statistics.data.gov.uk/id/local-authority/30UE,Private Sector HSG Renewal,1073,EARL - Communities,External Contractor,40198,Miscellaneous Expenses,5034,Ref 2,18/01/2023,0175239,£102.00,Revenue,Mobility Care Services,70841,,
Chorley Borough Council,http://statistics.data.gov.uk/id/local-authority/30UE,Private Sector HSG Renewal,1073,EARL - Communities,External Contractor,40198,Miscellaneous Expenses,5034,Ref 20015,18/01/2023,0175239,£136.00,Revenue,Mobility Care Services,70841,,
Chorley Borough Council,http://statistics.data.gov.uk/id/local-authority/30UE,Private Sector HSG Renewal,1073,EARL - Communities,External Contractor,40198,Miscellaneous Expenses,5034,Ref 20013,18/01/2023,0175239,£85.00,Revenue,Mobility Care Services,70841,,
Chorley Borough Council,http://statistics.data.gov.uk/id/local-authority/30UE,Private Sector HSG Renewal,1073,EARL - Communities,External Contractor,40198,Miscellaneous Expenses,5034,Ref 20022,18/01/2023,0175239,£80.00,Revenue,Mobility Care Services,70841,,
Chorley Borough Council,http://statistics.data.gov.uk/id/local-authority/30UE,Private Sector HSG Renewal,1073,EARL - Communities,External Contractor,40198,Miscellaneous Expenses,5034,Ref 20024,18/01/2023,0175239,£132.00,Revenue,Mobility Care Services,70841,,
Chorley Borough Council,http://statistics.data.gov.uk/id/local-authority/30UE,Private Sector HSG Renewal,1073,EARL - Communities,External Contractor,40198,Miscellaneous Expenses,5034,Ref 20026,18/01/2023,0175239,£17.00,Revenue,Mobility Care Services,70841,,
Chorley Borough Council,http://statistics.data.gov.uk/id/local-authority/30UE,Private Sector HSG Renewal,1073,EARL - Communities,External Contractor,40198,Miscellaneous Expenses,5034,Ref 20044,18/01/2023,0175239,£800.00,Revenue,Mobility Care Services,70841,,
Chorley Borough Council,http://statistics.data.gov.uk/id/local-authority/30UE,Private Sector HSG Renewal,1073,EARL - Communities,External Contractor,40198,Miscellaneous Expenses,5034,Ref 20045,18/01/2023,0175239,£920.00,Revenue,Mobility Care Services,70841,,
Chorley Borough Council,http://statistics.data.gov.uk/id/local-authority/30UE,Private Sector HSG Renewal,1073,EARL - Communities,External Contractor,40198,Miscellaneous Expenses,5034,Ref 20046,18/01/2023,0175239,£264.00,Revenue,Mobility Care Services,70841,,
Chorley Borough Council,http://statistics.data.gov.uk/id/local-authority/30UE,Private Sector HSG Renewal,1073,EARL - Communities,External Contractor,40198,Miscellaneous Expenses,5034,Ref 20049,18/01/2023,0175239,£275.00,Revenue,Mobility Care Services,70841,,
Chorley Borough Council,http://statistics.data.gov.uk/id/local-authority/30UE,Private Sector HSG Renewal,1073,EARL - Communities,External Contractor,40198,Miscellaneous Expenses,5034,Ref 20050,18/01/2023,0175239,£114.50,Revenue,Mobility Care Services,70841,,
Chorley Borough Council,http://statistics.data.gov.uk/id/local-authority/30UE,Private Sector HSG Renewal,1073,EARL - Communities,External Contractor,40198,Miscellaneous Expenses,5034,Ref 20051,18/01/2023,0175239,£264.00,Revenue,Mobility Care Services,70841,,
Chorley Borough Council,http://statistics.data.gov.uk/id/local-authority/30UE,Private Sector HSG Renewal,1073,EARL - Communities,External Contractor,40198,Miscellaneous Expenses,5034,Ref 20053,18/01/2023,0175239,£275.00,Revenue,Mobility Care Services,70841,,
Chorley Borough Council,http://statistics.data.gov.uk/id/local-authority/30UE,Private Sector HSG Renewal,1073,EARL - Communities,External Contractor,40198,Miscellaneous Expenses,5034,Ref 20054,18/01/2023,0175239,£480.00,Revenue,Mobility Care Services,70841,,
Chorley Borough Council,http://statistics.data.gov.uk/id/local-authority/30UE,Private Sector HSG Renewal,1073,EARL - Communities,External Contractor,40198,Miscellaneous Expenses,5034,Ref 20058,18/01/2023,0175239,£17.00,Revenue,Mobility Care Services,70841,,
Chorley Borough Council,http://statistics.data.gov.uk/id/local-authority/30UE,Private Sector HSG Renewal,1073,EARL - Communities,External Contractor,40198,Miscellaneous Expenses,5034,Ref 20059,18/01/2023,0175239,£68.00,Revenue,Mobility Care Services,70841,,
Chorley Borough Council,http://statistics.data.gov.uk/id/local-authority/30UE,Private Sector HSG Renewal,1073,EARL - Communities,External Contractor,40198,Miscellaneous Expenses,5034,Ref 20060,18/01/2023,0175239,£17.00,Revenue,Mobility Care Services,70841,,
Chorley Borough Council,http://statistics.data.gov.uk/id/local-authority/30UE,Private Sector HSG Renewal,1073,EARL - Communities,External Contractor,40198,Miscellaneous Expenses,5034,Ref 20061,18/01/2023,0175239,£85.00,Revenue,Mobility Care Services,70841,,
Chorley Borough Council,http://statistics.data.gov.uk/id/local-authority/30UE,Private Sector HSG Renewal,1073,EARL - Communities,External Contractor,40198,Miscellaneous Expenses,5034,Ref 20070,18/01/2023,0175239,£60.00,Revenue,Mobility Care Services,70841,,
Chorley Borough Council,http://statistics.data.gov.uk/id/local-authority/30UE,Private Sector HSG Renewal,1073,EARL - Communities,External Contractor,40198,Miscellaneous Expenses,5034,Ref 20086,18/01/2023,0175239,£60.00,Revenue,Mobility Care Services,70841,,
Chorley Borough Council,http://statistics.data.gov.uk/id/local-authority/30UE,Private Sector HSG Renewal,1073,EARL - Communities,External Contractor,40198,Miscellaneous Expenses,5034,Ref 20087,18/01/2023,0175239,£68.00,Revenue,Mobility Care Services,70841,,
Chorley Borough Council,http://statistics.data.gov.uk/id/local-authority/30UE,Private Sector HSG Renewal,1073,EARL - Communities,External Contractor,40198,Miscellaneous Expenses,5034,Ref 20088,18/01/2023,0175239,£68.00,Revenue,Mobility Care Services,70841,,
Chorley Borough Council,http://statistics.data.gov.uk/id/local-authority/30UE,Private Sector HSG Renewal,1073,EARL - Communities,External Contractor,40198,Miscellaneous Expenses,5034,Ref 20089,18/01/2023,0175239,£68.00,Revenue,Mobility Care Services,70841,,
Chorley Borough Council,http://statistics.data.gov.uk/id/local-authority/30UE,Private Sector HSG Renewal,1073,EARL - Communities,External Contractor,40198,Miscellaneous Expenses,5034,Ref 20091,18/01/2023,0175239,£60.00,Revenue,Mobility Care Services,70841,,
Chorley Borough Council,http://statistics.data.gov.uk/id/local-authority/30UE,Private Sector HSG Renewal,1073,EARL - Communities,External Contractor,40198,Miscellaneous Expenses,5034,Ref 20093,18/01/2023,0175239,£920.00,Revenue,Mobility Care Services,70841,,
Chorley Borough Council,http://statistics.data.gov.uk/id/local-authority/30UE,Private Sector HSG Renewal,1073,EARL - Communities,External Contractor,40198,Miscellaneous Expenses,5034,Ref 20094,18/01/2023,0175239,£990.00,Revenue,Mobility Care Services,70841,,
Chorley Borough Council,http://statistics.data.gov.uk/id/local-authority/30UE,Open Spaces,1038,CUST - Customer & Digital,Supplies-Grounds Maintenance,40025,"Equipment, Furniture & Materia",5023,Lay flag base for security shed at the Leisure Centre,11/01/2023,0174946,£540.00,Revenue,NAME REDACTED,72236,,
Chorley Borough Council,http://statistics.data.gov.uk/id/local-authority/30UE,Planning Policy,1092,GOVN - Policy & Governance,Legal Fees,40171,Miscellaneous Expenses,5034,Legal advice on options for the Chorley Local Plan,18/01/2023,0175226,£450.00,Revenue,NAME REDACTED,19968,,
Chorley Borough Council,http://statistics.data.gov.uk/id/local-authority/30UE,Central Support Services,1009,CUST - Customer & Digital,Computer Equipment-Maintenance,40105,Communication and Computing,5028,50x 2m VGA to VGA cables 40x VGA to HDMI converter,11/01/2023,0175037,£551.10,Revenue,myPremier,84029,,
Chorley Borough Council,http://statistics.data.gov.uk/id/local-authority/30UE,Development Control,1091,PLAN - Planning & Development,Statutory Notices,40160,Miscellaneous Expenses,5034,Planning Public Notices to appear in the Chorley Guardian April 2022 to March 2023,11/01/2023,0174945,£385.32,Revenue,National World Publishing Limited,20072,,
Chorley Borough Council,http://statistics.data.gov.uk/id/local-authority/30UE,Central Support Services,1009,CUST - Customer & Digital,Computer Software-Maintenance,40107,Communication and Computing,5028,NEC Cloud hosting support and maintenance,04/01/2023,0174737,"£49,180.00",Revenue,NEC Software Solutions UK Ltd,18285,,
Chorley Borough Council,http://statistics.data.gov.uk/id/local-authority/30UE,Regulatory Services,1048,PLAN - Planning & Development,"Hackney Badges, Plates Etc.",40023,"Equipment, Furniture & Materia",5023,Private Hire door signs to include tamper evident hologram and cover x50 @ £6.88 each,18/01/2023,0175388,£358.90,Revenue,NewAuto Ltd t/a MOGO UK,17187,,
Chorley Borough Council,http://statistics.data.gov.uk/id/local-authority/30UE,Central Support Services,1009,CUST - Customer & Digital,Computer Software-Purchase,40100,Communication and Computing,5028,DNS Charges,25/01/2023,0174536,£765.94,Revenue,Nominet UK,81408,,
Chorley Borough Council,http://statistics.data.gov.uk/id/local-authority/30UE,Central Support Services,1009,CUST - Customer & Digital,Computer Software-Purchase,40100,Communication and Computing,5028,DNS Charges,25/01/2023,0174950,£765.94,Revenue,Nominet UK,81408,,
Chorley Borough Council,http://statistics.data.gov.uk/id/local-authority/30UE,Central Support Services,1009,CUST - Customer & Digital,Computer Software-Purchase,40100,Communication and Computing,5028,DNS Charges,25/01/2023,0174951,£765.94,Revenue,Nominet UK,81408,,
Chorley Borough Council,http://statistics.data.gov.uk/id/local-authority/30UE,Central Support Services,1009,GOVN - Policy & Governance,General Subscriptions,40146,Grants and Subscriptions,5031,Annual Membership Renewal for 2023,25/01/2023,0175449,£325.00,Revenue,North & Western Lancs Chamber Of Commerce,16786,,
Chorley Borough Council,http://statistics.data.gov.uk/id/local-authority/30UE,Central Support Services,1009,CUST - Customer & Digital,Hire Of Vehicles and Plant,30028,Contrct Hire & Operating Lease,5018,Vehicle hire 3.5ton Luton Van with tail-lift,11/01/2023,0173498,£683.20,Revenue,Northgate Vehicle Hire (NW) Ltd,17360,,
Chorley Borough Council,http://statistics.data.gov.uk/id/local-authority/30UE,Central Support Services,1009,GOVN - Policy & Governance,Exhibitions & Special Events,40158,Miscellaneous Expenses,5034,Sponsorship of Red Rose Awards 2023 (micro business award),25/01/2023,0175297,"£4,500.00",Revenue,Northpoint Publishing Limited,76265,,
Chorley Borough Council,http://statistics.data.gov.uk/id/local-authority/30UE,Control Accounts,Control,GOVN - Policy & Governance,Manual Control Account,00001,Balance Sheet,Balance,- VAT,11/01/2023,0175238,-£357.87,Revenue,Novuna Vehicle Solutions,80629,,
Chorley Borough Council,http://statistics.data.gov.uk/id/local-authority/30UE,Parking Services,1066,GROW - Commercial & Property,External Contractors,50008,Private Contractors,5042,Provision of off street car park enforcement for period 01.11.22 - 31.03.23,04/01/2023,0174943,"£4,178.46",Revenue,NSL Limited,67253,,
Chorley Borough Council,http://statistics.data.gov.uk/id/local-authority/30UE,Parking Services,1066,GROW - Commercial & Property,External Contractors,50008,Private Contractors,5042,Provision of off street car park enforcement for period 01.11.22 - 31.03.23,25/01/2023,0175460,"£3,363.36",Revenue,NSL Limited,67253,,
Chorley Borough Council,http://statistics.data.gov.uk/id/local-authority/30UE,Central Support Services,1009,GOVN - Policy & Governance,Legal Fees,40171,Miscellaneous Expenses,5034,Investigation reports,25/01/2023,0175360,"£4,750.00",Revenue,NWLAEO North West Employers,17571,,
Chorley Borough Council,http://statistics.data.gov.uk/id/local-authority/30UE,Service Management & Support,1009,CUST - Customer & Digital,Supplies - Workshop,40246,"Equipment, Furniture & Materia",5023,As per invoice number 21365,11/01/2023,0175006,£259.40,Revenue,P D M Components,19204,,
Chorley Borough Council,http://statistics.data.gov.uk/id/local-authority/30UE,Planning Policy,1092,PLAN - Planning & Development,Agency Staff,13000,Direct Employee Expenses,5001,Agency labour for work on the Central Lancashire Local plan NAME REDACTED,11/01/2023,0174936,"£1,334.00",Revenue,Park Avenue Recruitment Ltd,82305,,
Chorley Borough Council,http://statistics.data.gov.uk/id/local-authority/30UE,Planning Policy,1092,PLAN - Planning & Development,Agency Staff,13000,Direct Employee Expenses,5001,Agency labour for work on the Central Lancashire Local plan NAME REDACTED,25/01/2023,0175092,£897.00,Revenue,Park Avenue Recruitment Ltd,82305,,
Chorley Borough Council,http://statistics.data.gov.uk/id/local-authority/30UE,Planning Policy,1092,PLAN - Planning & Development,Agency Staff,13000,Direct Employee Expenses,5001,Agency labour for work on the Central Lancashire Local plan NAME REDACTED,25/01/2023,0175178,"£1,610.00",Revenue,Park Avenue Recruitment Ltd,82305,,
Chorley Borough Council,http://statistics.data.gov.uk/id/local-authority/30UE,Planning Policy,1092,PLAN - Planning & Development,Agency Staff,13000,Direct Employee Expenses,5001,Agency labour for work on the Central Lancashire Local plan NAME REDACTED,11/01/2023,0175179,"£2,794.50",Revenue,Park Avenue Recruitment Ltd,82305,,
Chorley Borough Council,http://statistics.data.gov.uk/id/local-authority/30UE,Planning Policy,1092,PLAN - Planning & Development,Agency Staff,13000,Direct Employee Expenses,5001,Agency labour for work on the Central Lancashire Local plan NAME REDACTED,25/01/2023,0175456,"£1,610.00",Revenue,Park Avenue Recruitment Ltd,82305,,
Chorley Borough Council,http://statistics.data.gov.uk/id/local-authority/30UE,Business Support,1095,GROW - Commercial & Property,Cleaning Materials,40019,"Equipment, Furniture & Materia",5023,Agency labour for work on the Central Lancashire Local plan NAME REDACTED,11/01/2023,0175093,£362.96,Revenue,Pattersons Holdings (Bristol),77537,,
Chorley Borough Council,http://statistics.data.gov.uk/id/local-authority/30UE,Business Support,1095,GROW - Commercial & Property,Cleaning Materials,40019,"Equipment, Furniture & Materia",5023,10 x AE214 Premium Hand Towels @ £16.29,11/01/2023,0175093,£162.90,Revenue,Pattersons Holdings (Bristol),77537,,
Chorley Borough Council,http://statistics.data.gov.uk/id/local-authority/30UE,Business Support,1095,GROW - Commercial & Property,Cleaning Materials,40019,"Equipment, Furniture & Materia",5023,2 x AF113 blue centre feed roll @ 13.57,11/01/2023,0175093,£27.14,Revenue,Pattersons Holdings (Bristol),77537,,
Chorley Borough Council,http://statistics.data.gov.uk/id/local-authority/30UE,Business Support,1095,GROW - Commercial & Property,Cleaning Materials,40019,"Equipment, Furniture & Materia",5023,"8 x  BB028-1, Jangro washing up liquid 1 litre @ 1.35 each",11/01/2023,0175093,£10.80,Revenue,Pattersons Holdings (Bristol),77537,,
Chorley Borough Council,http://statistics.data.gov.uk/id/local-authority/30UE,Business Support,1095,GROW - Commercial & Property,Cleaning Materials,40019,"Equipment, Furniture & Materia",5023,2 x BB103 dishwasher tablets @ £11.84,11/01/2023,0175093,£23.68,Revenue,Pattersons Holdings (Bristol),77537,,
Chorley Borough Council,http://statistics.data.gov.uk/id/local-authority/30UE,Business Support,1095,GROW - Commercial & Property,Cleaning Materials,40019,"Equipment, Furniture & Materia",5023,6 x dishwasher cleaner @ 3.43,11/01/2023,0175093,£20.58,Revenue,Pattersons Holdings (Bristol),77537,,
Chorley Borough Council,http://statistics.data.gov.uk/id/local-authority/30UE,Business Support,1095,GROW - Commercial & Property,Cleaning Materials,40019,"Equipment, Furniture & Materia",5023,8 x BC040-1 perfumed toilet cleaner @ 0.98,11/01/2023,0175093,£7.84,Revenue,Pattersons Holdings (Bristol),77537,,
Chorley Borough Council,http://statistics.data.gov.uk/id/local-authority/30UE,Business Support,1095,GROW - Commercial & Property,Cleaning Materials,40019,"Equipment, Furniture & Materia",5023,4 x BC060-1 acidic toilet cleaner @ 2.17,11/01/2023,0175093,£8.68,Revenue,Pattersons Holdings (Bristol),77537,,
Chorley Borough Council,http://statistics.data.gov.uk/id/local-authority/30UE,Business Support,1095,GROW - Commercial & Property,Cleaning Materials,40019,"Equipment, Furniture & Materia",5023,6 x BG045 jangro cleaner polish @ 1.27,11/01/2023,0175093,£7.62,Revenue,Pattersons Holdings (Bristol),77537,,
Chorley Borough Council,http://statistics.data.gov.uk/id/local-authority/30UE,Business Support,1095,GROW - Commercial & Property,Cleaning Materials,40019,"Equipment, Furniture & Materia",5023,2 x BK081-50 katrin handwash (x12) @ 36.36,11/01/2023,0175093,£72.72,Revenue,Pattersons Holdings (Bristol),77537,,
Chorley Borough Council,http://statistics.data.gov.uk/id/local-authority/30UE,Business Support,1095,GROW - Commercial & Property,Cleaning Materials,40019,"Equipment, Furniture & Materia",5023,2 x CM160-C clear refuse sacks @ £11.31,11/01/2023,0175093,£22.62,Revenue,Pattersons Holdings (Bristol),77537,,
Chorley Borough Council,http://statistics.data.gov.uk/id/local-authority/30UE,Business Support,1095,GROW - Commercial & Property,Cleaning Materials,40019,"Equipment, Furniture & Materia",5023,4 x CM180 black HD refuse sacks @ £12.97,11/01/2023,0175093,£51.88,Revenue,Pattersons Holdings (Bristol),77537,,
Chorley Borough Council,http://statistics.data.gov.uk/id/local-authority/30UE,Business Support,1095,GROW - Commercial & Property,Cleaning Materials,40019,"Equipment, Furniture & Materia",5023,"3 x DG150-L Nitrile Gloves, large @ £5.72",11/01/2023,0175093,£17.16,Revenue,Pattersons Holdings (Bristol),77537,,
Chorley Borough Council,http://statistics.data.gov.uk/id/local-authority/30UE,Business Support,1095,GROW - Commercial & Property,Cleaning Materials,40019,"Equipment, Furniture & Materia",5023,1 x NCNVM ``Henry`` hoover bags,11/01/2023,0175093,£8.13,Revenue,Pattersons Holdings (Bristol),77537,,
Chorley Borough Council,http://statistics.data.gov.uk/id/local-authority/30UE,Tourism,1039,GOVN - Policy & Governance,Professional Fees,40063,Services,5027,Remaining 2022 event photography,11/01/2023,0175040,£300.00,Revenue,Paul Heyes Photographer,20909,,
Chorley Borough Council,http://statistics.data.gov.uk/id/local-authority/30UE,Tourism,1039,GOVN - Policy & Governance,Tools & Equipment - Hire,40004,"Equipment, Furniture & Materia",5023,"Stage, PA, Lighting and labour costs for CL",11/01/2023,0175163,"£4,090.00",Revenue,Paul K Sound & Vision,16607,,
Chorley Borough Council,http://statistics.data.gov.uk/id/local-authority/30UE,Central Support Services,1009,GOVN - Policy & Governance,HR Approved Occ Health Fees,15201,Indirect Employee Expenses,5002,Occupational Health Charges for November 2022,11/01/2023,0175052,"£2,180.91",Revenue,People Asset Management Limited,76487,,
Chorley Borough Council,http://statistics.data.gov.uk/id/local-authority/30UE,Central Support Services,1009,GOVN - Policy & Governance,HR Approved Occ Health Fees,15201,Indirect Employee Expenses,5002,Invoice 119818,25/01/2023,0175359,"£1,393.89",Revenue,People Asset Management Limited,76487,,
Chorley Borough Council,http://statistics.data.gov.uk/id/local-authority/30UE,Service Management & Support,1009,CUST - Customer & Digital,External Contractor,40198,Miscellaneous Expenses,5034,Face fit testing 19/12/22,11/01/2023,0175168,£325.00,Revenue,Phoenix Fit-Testing Services LTD,87073,,
Chorley Borough Council,http://statistics.data.gov.uk/id/local-authority/30UE,Service Management & Support,1009,CUST - Customer & Digital,Diesel/Derv,30007,Direct Transport Costs,5016,7200 litres white diesel @ £1.4125 per litre,11/01/2023,0175189,"£9,870.55",Revenue,Pilkington Oils,18075,,
Chorley Borough Council,http://statistics.data.gov.uk/id/local-authority/30UE,Service Management & Support,1009,CUST - Customer & Digital,Vehicles and Plant Maintenance,30045,Direct Transport Costs,5016,"As per Work Order Number: 1899598
NAME REDACTED",11/01/2023,0175103,£380.85,Revenue,Pirtek Preston,84626,,
Chorley Borough Council,http://statistics.data.gov.uk/id/local-authority/30UE,Development Control,1091,PLAN - Planning & Development,Professional Fees,40063,Services,5027,Planning Enforcement Services April 2022 to March 2023,25/01/2023,0175074,"£1,041.30",Revenue,Planning and PACE Solutions Ltd,82083,,
Chorley Borough Council,http://statistics.data.gov.uk/id/local-authority/30UE,Development Control,1091,PLAN - Planning & Development,Professional Fees,40063,Services,5027,,25/01/2023,0175074,£30.60,Revenue,Planning and PACE Solutions Ltd,82083,,
Chorley Borough Council,http://statistics.data.gov.uk/id/local-authority/30UE,Development Control,1091,PLAN - Planning & Development,Planning Application Fees,60149,Customer & Client Receipts,5064,PP-11594827,11/01/2023,0174985,£462.00,Revenue,Planning Portal Ltd,77808,,
Chorley Borough Council,http://statistics.data.gov.uk/id/local-authority/30UE,Precepts and Collection Fund,Precepts,GOVN - Policy & Governance,LPA Precept,02010,Precepts & Collection Fund,Precept,PCC Council Tax Precept,13/01/2023,0173412,"£912,252.00",Revenue,Police & Crime Commissioner,17438,,
Chorley Borough Council,http://statistics.data.gov.uk/id/local-authority/30UE,Precepts and Collection Fund,Precepts,GOVN - Policy & Governance,LPA Precept,02010,Precepts & Collection Fund,Precept,PCC council tax precept,13/01/2023,0174356,"£912,252.00",Revenue,Police & Crime Commissioner,17438,,
Chorley Borough Council,http://statistics.data.gov.uk/id/local-authority/30UE,Precepts and Collection Fund,Precepts,GOVN - Policy & Governance,LPA Precept,02010,Precepts & Collection Fund,Precept,PCC council tax precept,13/01/2023,0175211,"£912,252.00",Revenue,Police & Crime Commissioner,17438,,
Chorley Borough Council,http://statistics.data.gov.uk/id/local-authority/30UE,Open Spaces,1038,PLAN - Planning & Development,Grounds Maintenance Contractor,20043,Grounds Maintenance Costs,5013,Slow Hedgehogs Please Drive Carefully Safety Sign - 6mm correx Sign (300mm x 200mm).  UV printed direct with holes for cable ties,04/01/2023,0174833,£317.60,Revenue,Poppy Signs Ltd,21898,,
Chorley Borough Council,http://statistics.data.gov.uk/id/local-authority/30UE,Tourism,1039,GOVN - Policy & Governance,Publicity - Advertising,40157,Miscellaneous Expenses,5034,Banners for Chorley`s Winter Wonderland 1 1 Unit(s) Access to Betty`s Tipi Banner PVC Banner Hemmed with Eyelets 2000mm x 850mm Q,11/01/2023,0175053,£372.01,Revenue,Poppy Signs Ltd,21898,,
Chorley Borough Council,http://statistics.data.gov.uk/id/local-authority/30UE,Business Support,1095,GROW - Commercial & Property,Misc Expenses,40200,Miscellaneous Expenses,5034,"Music Licences for background music, 22.11.22 to 21.11.23",04/01/2023,0175020,£283.95,Revenue,PPL PRS Ltd,77455,,
Chorley Borough Council,http://statistics.data.gov.uk/id/local-authority/30UE,Recreation & Sport,1037,GOVN - Policy & Governance,Performing Rights Society Fees,40148,Grants and Subscriptions,5031,Music Licence for the Lancastrian at Chorley Town Hall from 06/04/22 to 05/07/22.,11/01/2023,0175041,£698.31,Revenue,PPL PRS Ltd,77455,,
Chorley Borough Council,http://statistics.data.gov.uk/id/local-authority/30UE,Central Support Services,1009,GROW - Commercial & Property,Planned Maintenance,20006,Repairs Maintenance & Alts,5005,Primrose Gardens Please arrange a time and date with NAME REDACTED so we can notify relevant parties Annual service of sprinkler ,04/01/2023,0174928,£500.00,Revenue,Prima Fire and Security,81153,,
Chorley Borough Council,http://statistics.data.gov.uk/id/local-authority/30UE,Elections,1012,GOVN - Policy & Governance,Postages,40082,Communication and Computing,5028,PI Refresh mailings 2023 first round,18/01/2023,0175255,"£2,429.95",Revenue,Print Image Facilities LLP,57870,,
Chorley Borough Council,http://statistics.data.gov.uk/id/local-authority/30UE,Homelessness,1075,EARL - Communities,Service Fees,40056,Services,5027,Progress Housing Group CONTROL CENTRE MONITORING  01.04.2022 - 31.03.2023 HOMELESS SERVICE,11/01/2023,0173545,"£4,497.13",Revenue,Progress Housing Group,64340,,
Chorley Borough Council,http://statistics.data.gov.uk/id/local-authority/30UE,Interest Payable on Debt,1020,GOVN - Policy & Governance,Interest Payable,09009,Interest Payments,5067,interest LN509178,13/01/2023,0173618,"£24,530.00",Revenue,Public Works Loans Board,21480,,
Chorley Borough Council,http://statistics.data.gov.uk/id/local-authority/30UE,Interest Payable on Debt,1020,GOVN - Policy & Governance,Interest Payable,09009,Interest Payments,5067,Interest LN502694,13/01/2023,0174395,"£34,129.00",Revenue,Public Works Loans Board,21480,,
Chorley Borough Council,http://statistics.data.gov.uk/id/local-authority/30UE,Interest Payable on Debt,1020,GOVN - Policy & Governance,Interest Payable,09009,Interest Payments,5067,Interest LN502695,13/01/2023,0174395,"£33,702.56",Revenue,Public Works Loans Board,21480,,
Chorley Borough Council,http://statistics.data.gov.uk/id/local-authority/30UE,Interest Payable on Debt,1020,GOVN - Policy & Governance,Interest Payable,09009,Interest Payments,5067,Interest LN502696,13/01/2023,0174395,"£29,862.67",Revenue,Public Works Loans Board,21480,,
Chorley Borough Council,http://statistics.data.gov.uk/id/local-authority/30UE,Interest Payable on Debt,1020,GOVN - Policy & Governance,Interest Payable,09009,Interest Payments,5067,Interest LN502697,13/01/2023,0174395,"£23,309.05",Revenue,Public Works Loans Board,21480,,
Chorley Borough Council,http://statistics.data.gov.uk/id/local-authority/30UE,Interest Payable on Debt,1020,GOVN - Policy & Governance,Interest Payable,09009,Interest Payments,5067,Interest LN502698,13/01/2023,0174395,"£14,527.84",Revenue,Public Works Loans Board,21480,,
Chorley Borough Council,http://statistics.data.gov.uk/id/local-authority/30UE,Interest Payable on Debt,1020,GOVN - Policy & Governance,Interest Payable,09009,Interest Payments,5067,Interest LN502699,13/01/2023,0174395,"£2,738.08",Revenue,Public Works Loans Board,21480,,
Chorley Borough Council,http://statistics.data.gov.uk/id/local-authority/30UE,Culture & Heritage,1036,GOVN - Policy & Governance,Arts Development Initiatives,40187,Miscellaneous Expenses,5034,"Hidden from Light artists fee - £1000
delivery of artwork - £61.70",11/01/2023,0175150,"£1,061.70",Revenue,Rebecca Chesney,78286,,
Chorley Borough Council,http://statistics.data.gov.uk/id/local-authority/30UE,Business Support,1095,GROW - Commercial & Property,General Repairs - Reactive,20004,Repairs Maintenance & Alts,5005,To provide a pest control service to Market Walk from April 22 which includes the following: Rats/Mice - 8 visits per annum (incl,11/01/2023,0175152,£484.31,Revenue,Rentokil,76639,,
Chorley Borough Council,http://statistics.data.gov.uk/id/local-authority/30UE,Control Accounts,Control,GOVN - Policy & Governance,General Balances,00100,Balance Sheet,Balance,ccv voucher 15 nov22,13/01/2023,0173635,£798.00,Revenue,Reward Gateway (UK) Ltd,66814,,
Chorley Borough Council,http://statistics.data.gov.uk/id/local-authority/30UE,Control Accounts,Control,GOVN - Policy & Governance,General Balances,00100,Balance Sheet,Balance,15 dec 2022,13/01/2023,0174724,£399.00,Revenue,Reward Gateway (UK) Ltd,66814,,
Chorley Borough Council,http://statistics.data.gov.uk/id/local-authority/30UE,Non Domestic Rates Redistribut,,GOVN - Policy & Governance,Tariff to Business Rates Pool,49002,Expenditure not in NCOS,,Lancs bus rates pool,13/01/2023,0173489,"£520,258.00",Revenue,Ribble Valley Borough Council DIRECT DEBIT ONLY,21100,,
Chorley Borough Council,http://statistics.data.gov.uk/id/local-authority/30UE,Non Domestic Rates Redistribut,,GOVN - Policy & Governance,Tariff to Business Rates Pool,49002,Expenditure not in NCOS,,lancs bus rates pool,13/01/2023,0174108,"£520,258.00",Revenue,Ribble Valley Borough Council DIRECT DEBIT ONLY,21100,,
Chorley Borough Council,http://statistics.data.gov.uk/id/local-authority/30UE,Non Domestic Rates Redistribut,,GOVN - Policy & Governance,Tariff to Business Rates Pool,49002,Expenditure not in NCOS,,lancs bus rates pool,13/01/2023,0175004,"£520,258.00",Revenue,Ribble Valley Borough Council DIRECT DEBIT ONLY,21100,,
Chorley Borough Council,http://statistics.data.gov.uk/id/local-authority/30UE,Planning Policy,1092,PLAN - Planning & Development,Consultants` Fees,40077,Services,5027,Purchase of Consultancy Services for the Preferred Options Version of the Central Lancashire Local Plan,11/01/2023,0175042,"£24,750.00",Revenue,Richard Wood Associates Ltd,86909,,
Chorley Borough Council,http://statistics.data.gov.uk/id/local-authority/30UE,Central Support Services,1009,GROW - Commercial & Property,Professional Fees,40063,Services,5027,Marketing fees for council commercial property from May 2022 to April 2023,11/01/2023,0175160,"£1,020.00",Revenue,Rightmove Group Ltd,77717,,
Chorley Borough Council,http://statistics.data.gov.uk/id/local-authority/30UE,Business Support,1095,GROW - Commercial & Property,Security Service,40062,Services,5027,"To provide site concierge services at Primrose Gardens Extra Care facility, hours as outlined by the premises manager. 7 days a w",18/01/2023,0175342,"£8,173.35",Revenue,Secure FM Ltd,86928,,
Chorley Borough Council,http://statistics.data.gov.uk/id/local-authority/30UE,Homelessness,1075,GROW - Commercial & Property,Security Service,40062,Services,5027,"To provide site concierge services at Cotswold House temporary accommodation facility, hours as outlined by the premises manager.",18/01/2023,0175347,"£8,213.33",Revenue,Secure FM Ltd,86928,,
Chorley Borough Council,http://statistics.data.gov.uk/id/local-authority/30UE,Business Support,1095,GROW - Commercial & Property,Security Service,40062,Services,5027,"To provide evening Site Security Services at Market Walk Shopping Centre from 5pm until midnight, 7 days a week. Hourly rate £12.",18/01/2023,0175349,"£2,773.65",Revenue,Secure FM Ltd,86928,,
Chorley Borough Council,http://statistics.data.gov.uk/id/local-authority/30UE,Homelessness,1075,GROW - Commercial & Property,Service Fees,40056,Services,5027,"To provide additional Winter Watch Security at Cotswold House as discussed From 21:30 to 08:45 - 7 days a week, from Mon 24th Oct",18/01/2023,0175350,"£4,566.38",Revenue,Secure FM Ltd,86928,,
Chorley Borough Council,http://statistics.data.gov.uk/id/local-authority/30UE,Culture & Heritage,1036,GROW - Commercial & Property,Misc Expenses,40200,Miscellaneous Expenses,5034,Pro-Series Telescopic Ladder - 305EJA113 £255.71 + vat,11/01/2023,0174305,£257.64,Revenue,Seton Ltd,16674,,
Chorley Borough Council,http://statistics.data.gov.uk/id/local-authority/30UE,Culture & Heritage,1036,GROW - Commercial & Property,Misc Expenses,40200,Miscellaneous Expenses,5034,2 x Stacking Chair Trolley -  302GUA100 153.41 + vat,11/01/2023,0175018,£309.12,Revenue,Seton Ltd,16674,,
Chorley Borough Council,http://statistics.data.gov.uk/id/local-authority/30UE,Service Management & Support,1009,CUST - Customer & Digital,Vehicles and Plant Operating Lease,30029,Contrct Hire & Operating Lease,5018,As per Invoice 105/22/24300  ,25/01/2023,0175448,£980.00,Revenue,SG EQUIPMENT FINANCE LTD,18156,,
Chorley Borough Council,http://statistics.data.gov.uk/id/local-authority/30UE,Control Accounts,Control,GOVN - Policy & Governance,Manual Control Account,00001,Balance Sheet,Balance,- VAT,04/01/2023,0175025,-£252.51,Revenue,SG Fleet Solutions UK Limited,80539,,
Chorley Borough Council,http://statistics.data.gov.uk/id/local-authority/30UE,Capital,Capital,GROW - Commercial & Property,Main Contractor,03007,Capital Expenditure,Capital,Clayton Green Repair works to Timber windows as agreed with NAME REDACTED,11/01/2023,0175223,"£1,176.00",Capital,Singleton and Smart,85371,,
Chorley Borough Council,http://statistics.data.gov.uk/id/local-authority/30UE,Central Support Services,1009,GOVN - Policy & Governance,Lone Working System,40097,Communication and Computing,5028,Service Charge January 2023,25/01/2023,0175453,£500.80,Revenue,SoloProtect Ltd,76206,,
Chorley Borough Council,http://statistics.data.gov.uk/id/local-authority/30UE,Central Support Services,1009,EARL - Communities,Misc Expenses,40200,Miscellaneous Expenses,5034,2022-2023 tempo community currency (Time Credits) service,25/01/2023,0175327,"£7,138.75",Revenue,Spice Innovations Ltd T/A Tempo Time Credits,61318,,
Chorley Borough Council,http://statistics.data.gov.uk/id/local-authority/30UE,Control Accounts,Control,GOVN - Policy & Governance,General Balances,00100,Balance Sheet,Balance,St Catherines - Dec 22 Monthly Deductions from Payroll,04/01/2023,0174882,£295.12,Revenue,St Catherines Hospice Promotions,72375,,
Chorley Borough Council,http://statistics.data.gov.uk/id/local-authority/30UE,Corporate Management,1008,GOVN - Policy & Governance,Refreshments,40036,Catering,5024,Cater for 60 persons based on savoury and sweet collections per person - travel and service Event starts 7:30 - 8:30 pm at Chorle,11/01/2023,0175079,£800.00,Revenue,St Catherines Social Enterprise Ltd,76345,,
Chorley Borough Council,http://statistics.data.gov.uk/id/local-authority/30UE,Corporate Management,1008,EARL - Communities,Grants to Chorley T.C.Initiative,40128,Grants and Subscriptions,5031,Delivery of Household Support Fund Phase 3,11/01/2023,0175071,"£3,300.00",Revenue,St Laurence`s PCC,17814,,
Chorley Borough Council,http://statistics.data.gov.uk/id/local-authority/30UE,Capital,Capital,EARL - Communities,Grants,03002,Capital Expenditure,Capital,NAME REDACTED,11/01/2023,0174984,"£3,068.00",Capital,Stannah Lift Services Ltd,80943,,
Chorley Borough Council,http://statistics.data.gov.uk/id/local-authority/30UE,Capital,Capital,GROW - Commercial & Property,Other Capital Related Fees,03024,Capital Expenditure,Capital,6X 1100 litre with blue reverse lid @ £341.80 per bin 6X 1100 litre with brown reverse lid @ £341.80 per bin 6X 1100 litre with s,04/01/2023,0174939,"£5,949.78",Capital,Storm Environmental Limited,77802,,
Chorley Borough Council,http://statistics.data.gov.uk/id/local-authority/30UE,Parking Services,1066,GROW - Commercial & Property,Signs:Provision & Maintenance,20065,Grounds Maintenance Costs,5013,Re Friday St/Friday St North Car Park Signs  Remove all existing flow plate signs including the damaged soffit sign which is inco,11/01/2023,0175124,£988.00,Revenue,Street Civil Engineering Limited,76750,,
Chorley Borough Council,http://statistics.data.gov.uk/id/local-authority/30UE,Central Support Services,1009,GROW - Commercial & Property,General Repairs - Reactive,20004,Repairs Maintenance & Alts,5005,Hall Gate Car park Take down 3 signs to tip @ £20.00 each Take down & re-erect 3 signs @ £30.00 each Provide & erect 2 centre war,11/01/2023,0175218,£743.00,Revenue,Street Civil Engineering Limited,76750,,
Chorley Borough Council,http://statistics.data.gov.uk/id/local-authority/30UE,Central Support Services,1009,GROW - Commercial & Property,General Repairs - Reactive,20004,Repairs Maintenance & Alts,5005,"Engineering Services Quote 02 - 2022 ADDRES REDACTED, Chorley Detailed design, liaison with stakeholders, preparation of drawings",18/01/2023,0175394,"£3,229.70",Revenue,Street Civil Engineering Limited,76750,,
Chorley Borough Council,http://statistics.data.gov.uk/id/local-authority/30UE,Central Support Services,1009,GROW - Commercial & Property,General Repairs - Reactive,20004,Repairs Maintenance & Alts,5005,"Engineering Services Quote 03 - 2022 ADDRESS REDACTED Arrange & carry out detailed site investigation, detailed design, liaison w",18/01/2023,0175395,"£1,103.79",Revenue,Street Civil Engineering Limited,76750,,
Chorley Borough Council,http://statistics.data.gov.uk/id/local-authority/30UE,Central Support Services,1009,GROW - Commercial & Property,General Repairs - Reactive,20004,Repairs Maintenance & Alts,5005,Engineering Services Quote 01 - 2022 Provision of agreed general engineering services 1st September 2022 to 31st March 2023,18/01/2023,0175397,"£1,333.79",Revenue,Street Civil Engineering Limited,76750,,
Chorley Borough Council,http://statistics.data.gov.uk/id/local-authority/30UE,Central Support Services,1009,GROW - Commercial & Property,General Repairs - Reactive,20004,Repairs Maintenance & Alts,5005,Primrose - reactive repairs,18/01/2023,0174922,£758.26,Revenue,Stringfellow Bldg Cntrctrs Ltd,17893,,
Chorley Borough Council,http://statistics.data.gov.uk/id/local-authority/30UE,Central Support Services,1009,GROW - Commercial & Property,General Repairs - Reactive,20004,Repairs Maintenance & Alts,5005,Housing - reactive repairs,25/01/2023,0174931,£758.29,Revenue,Stringfellow Bldg Cntrctrs Ltd,17893,,
Chorley Borough Council,http://statistics.data.gov.uk/id/local-authority/30UE,Central Support Services,1009,GROW - Commercial & Property,General Repairs - Reactive,20004,Repairs Maintenance & Alts,5005,Community Centres - reactive repairs,25/01/2023,0174968,"£1,250.00",Revenue,Stringfellow Bldg Cntrctrs Ltd,17893,,
Chorley Borough Council,http://statistics.data.gov.uk/id/local-authority/30UE,Central Support Services,1009,GROW - Commercial & Property,General Repairs - Reactive,20004,Repairs Maintenance & Alts,5005,Cotswold -  reactive works,25/01/2023,0174969,£566.33,Revenue,Stringfellow Bldg Cntrctrs Ltd,17893,,
Chorley Borough Council,http://statistics.data.gov.uk/id/local-authority/30UE,Central Support Services,1009,GROW - Commercial & Property,General Repairs - Reactive,20004,Repairs Maintenance & Alts,5005,Primrose - reactive repairs,25/01/2023,0175242,"£1,367.32",Revenue,Stringfellow Bldg Cntrctrs Ltd,17893,,
Chorley Borough Council,http://statistics.data.gov.uk/id/local-authority/30UE,Capital,Capital,EARL - Communities,Grants,03002,Capital Expenditure,Capital,,25/01/2023,0175377,"£7,870.00",Capital,Stringfellow Bldg Cntrctrs Ltd,17893,,
Chorley Borough Council,http://statistics.data.gov.uk/id/local-authority/30UE,Central Support Services,1009,CUST - Customer & Digital,Refuse Collection,20037,Cleaning and Domestic Supplies,5012,"Trade waste collections TOWN HALL, General waste 2022.2023",04/01/2023,0174829,£113.01,Revenue,SUEZ R&R UK LTD,17615,,
Chorley Borough Council,http://statistics.data.gov.uk/id/local-authority/30UE,Central Support Services,1009,CUST - Customer & Digital,Refuse Collection,20037,Cleaning and Domestic Supplies,5012,Trade waste collections TOWN HALL MIXED REC 2022.2023,04/01/2023,0174829,£22.01,Revenue,SUEZ R&R UK LTD,17615,,
Chorley Borough Council,http://statistics.data.gov.uk/id/local-authority/30UE,Central Support Services,1009,CUST - Customer & Digital,Refuse Collection,20037,Cleaning and Domestic Supplies,5012,"Trade waste Collections, Civic Offices, General Waste 2022.2023",04/01/2023,0174829,£226.03,Revenue,SUEZ R&R UK LTD,17615,,
Chorley Borough Council,http://statistics.data.gov.uk/id/local-authority/30UE,Central Support Services,1009,CUST - Customer & Digital,Refuse Collection,20037,Cleaning and Domestic Supplies,5012,"Trade waste Collections, Civic Offices, Mixed Recycling 2022.2023",04/01/2023,0174829,£22.01,Revenue,SUEZ R&R UK LTD,17615,,
Chorley Borough Council,http://statistics.data.gov.uk/id/local-authority/30UE,Culture & Heritage,1036,CUST - Customer & Digital,Refuse Collection,20037,Cleaning and Domestic Supplies,5012,"Trade waste Collections, Astley Hall, General Waste 2022.2023",04/01/2023,0174829,£37.67,Revenue,SUEZ R&R UK LTD,17615,,
Chorley Borough Council,http://statistics.data.gov.uk/id/local-authority/30UE,Community Development,1097,CUST - Customer & Digital,Refuse Collection,20037,Cleaning and Domestic Supplies,5012,"Trade waste Collections, MPs Constituency Offices, General Waste 2022.2023",04/01/2023,0174829,£37.67,Revenue,SUEZ R&R UK LTD,17615,,
Chorley Borough Council,http://statistics.data.gov.uk/id/local-authority/30UE,Recreation & Sport,1037,CUST - Customer & Digital,Refuse Collection,20037,Cleaning and Domestic Supplies,5012,"Trade waste Collections, Eaves Green Community Centre, General Waste 2022.2023",04/01/2023,0174829,£20.49,Revenue,SUEZ R&R UK LTD,17615,,
Chorley Borough Council,http://statistics.data.gov.uk/id/local-authority/30UE,Recreation & Sport,1037,CUST - Customer & Digital,Refuse Collection,20037,Cleaning and Domestic Supplies,5012,"Trade waste Collections, Astley Village Community Centre, General Waste 2022.2023",04/01/2023,0174829,£20.49,Revenue,SUEZ R&R UK LTD,17615,,
Chorley Borough Council,http://statistics.data.gov.uk/id/local-authority/30UE,Recreation & Sport,1037,CUST - Customer & Digital,Misc Expenses,40200,Miscellaneous Expenses,5034,"Trade waste Collections, Buttermere Green Community Centre, General Waste 2022.2023",04/01/2023,0174829,£20.49,Revenue,SUEZ R&R UK LTD,17615,,
Chorley Borough Council,http://statistics.data.gov.uk/id/local-authority/30UE,Recreation & Sport,1037,CUST - Customer & Digital,Misc Expenses,40200,Miscellaneous Expenses,5034,"Trade waste Collections, Lancaster Way Community Centre, General Waste 2022.2023",04/01/2023,0174829,£20.49,Revenue,SUEZ R&R UK LTD,17615,,
Chorley Borough Council,http://statistics.data.gov.uk/id/local-authority/30UE,Recreation & Sport,1037,CUST - Customer & Digital,Refuse Collection,20037,Cleaning and Domestic Supplies,5012,"Trade waste Collections, Tatton Community Centre, General Waste 2022.2023",04/01/2023,0174829,£20.49,Revenue,SUEZ R&R UK LTD,17615,,
Chorley Borough Council,http://statistics.data.gov.uk/id/local-authority/30UE,Recreation & Sport,1037,CUST - Customer & Digital,Refuse Collection,20037,Cleaning and Domestic Supplies,5012,"Trade waste Collections, Clayton Brook Village Hall, General Waste 2022.2023",04/01/2023,0174829,£24.80,Revenue,SUEZ R&R UK LTD,17615,,
Chorley Borough Council,http://statistics.data.gov.uk/id/local-authority/30UE,Business Support,1095,CUST - Customer & Digital,Refuse Collection,20037,Cleaning and Domestic Supplies,5012,"Trade waste collections, Strawberry Fields Digital Hub General waste 2022.2023",04/01/2023,0174829,£113.01,Revenue,SUEZ R&R UK LTD,17615,,
Chorley Borough Council,http://statistics.data.gov.uk/id/local-authority/30UE,Business Support,1095,CUST - Customer & Digital,Refuse Collection,20037,Cleaning and Domestic Supplies,5012,"Trade waste collections, Strawberry Fields Digital Hub, Mixed Recycling 2022.2023",04/01/2023,0174829,£66.03,Revenue,SUEZ R&R UK LTD,17615,,
Chorley Borough Council,http://statistics.data.gov.uk/id/local-authority/30UE,Service Management & Support,1009,CUST - Customer & Digital,Refuse Collection,20037,Cleaning and Domestic Supplies,5012,Exchange 20 yard Street Sweeping Skip @ £80.96 to cover period  01/04/2022 - 31/03/2023,11/01/2023,0175073,"£1,862.08",Revenue,SUEZ R&R UK LTD,17615,,
Chorley Borough Council,http://statistics.data.gov.uk/id/local-authority/30UE,Service Management & Support,1009,CUST - Customer & Digital,Refuse Collection,20037,Cleaning and Domestic Supplies,5012,Exchange 35 yard General Waste Skip @ £89.94to cover period  01/04/2022 - 31/03/2023,11/01/2023,0175073,£719.52,Revenue,SUEZ R&R UK LTD,17615,,
Chorley Borough Council,http://statistics.data.gov.uk/id/local-authority/30UE,Service Management & Support,1009,CUST - Customer & Digital,Refuse Collection,20037,Cleaning and Domestic Supplies,5012,Exchange 35 yard Green Waste skip @ £84.26 to cover period 01/04/2022- 31/03/2023,11/01/2023,0175073,£168.52,Revenue,SUEZ R&R UK LTD,17615,,
Chorley Borough Council,http://statistics.data.gov.uk/id/local-authority/30UE,Service Management & Support,1009,CUST - Customer & Digital,Refuse Collection,20037,Cleaning and Domestic Supplies,5012,Disposal charge and processing of Green Waste @ £37.50 per tonne,11/01/2023,0175073,£277.50,Revenue,SUEZ R&R UK LTD,17615,,
Chorley Borough Council,http://statistics.data.gov.uk/id/local-authority/30UE,Service Management & Support,1009,CUST - Customer & Digital,Refuse Collection,20037,Cleaning and Domestic Supplies,5012,Exchange 20 yard Street Sweeping Skip @ £80.96 to cover period  01/04/2022 - 31/03/2023,25/01/2023,0175464,"£1,133.44",Revenue,SUEZ R&R UK LTD,17615,,
Chorley Borough Council,http://statistics.data.gov.uk/id/local-authority/30UE,Service Management & Support,1009,CUST - Customer & Digital,Refuse Collection,20037,Cleaning and Domestic Supplies,5012,Exchange 35 yard General Waste Skip @ £89.94 to cover period  01/04/2022 - 31/03/2023,25/01/2023,0175464,£809.46,Revenue,SUEZ R&R UK LTD,17615,,
Chorley Borough Council,http://statistics.data.gov.uk/id/local-authority/30UE,Service Management & Support,1009,CUST - Customer & Digital,Refuse Collection,20037,Cleaning and Domestic Supplies,5012,Exchange 35 yard Green Waste skip @ £84.26 to cover period 01/04/2022- 31/03/2023,25/01/2023,0175464,£168.52,Revenue,SUEZ R&R UK LTD,17615,,
Chorley Borough Council,http://statistics.data.gov.uk/id/local-authority/30UE,Service Management & Support,1009,CUST - Customer & Digital,Refuse Collection,20037,Cleaning and Domestic Supplies,5012,Disposal charge and processing of Green Waste @ £37.50 per tonne,25/01/2023,0175464,£196.50,Revenue,SUEZ R&R UK LTD,17615,,
Chorley Borough Council,http://statistics.data.gov.uk/id/local-authority/30UE,Corporate Management,1008,EARL - Communities,Grants to Chorley T.C.Initiative,40128,Grants and Subscriptions,5031,Delivery of Household Support Fund Phase 3,04/01/2023,0174719,"£10,500.00",Revenue,SVP Chorley Buddies,82307,,
Chorley Borough Council,http://statistics.data.gov.uk/id/local-authority/30UE,Central Support Services,1009,CUST - Customer & Digital,Computer Equipment - Security,40106,Communication and Computing,5028,Tatton Community Centre Replacement radio ethernet link to the Police Station,11/01/2023,0175195,"£1,719.00",Revenue,Technology Solutions,72376,,
Chorley Borough Council,http://statistics.data.gov.uk/id/local-authority/30UE,Elections,1012,GOVN - Policy & Governance,Training Course Fees,17010,Indirect Employee Expenses,5002,AEA course - Delivering Voter ID - 7 February 20232 delegates (AEA members)NAMES REDACTED,11/01/2023,0174947,£298.00,Revenue,The Association Of Electoral Administrators,16344,,
Chorley Borough Council,http://statistics.data.gov.uk/id/local-authority/30UE,Business Support,1095,GROW - Commercial & Property,Security Service,40062,Services,5027,Eviction of travelers,11/01/2023,0174718,"£2,750.00",Revenue,The ExcluSec Group Ltd,78056,,
Chorley Borough Council,http://statistics.data.gov.uk/id/local-authority/30UE,Business Support,1095,GROW - Commercial & Property,Legal Fees,40171,Miscellaneous Expenses,5034,"for eviction of travellers from Strawberry Meadows, 01/12/22",11/01/2023,0175158,"£1,700.00",Revenue,The ExcluSec Group Ltd,78056,,
Chorley Borough Council,http://statistics.data.gov.uk/id/local-authority/30UE,Central Support Services,1009,EARL - Communities,Misc Expenses,40200,Miscellaneous Expenses,5034,Contribution towards CIL project delivery,25/01/2023,0175399,"£12,166.00",Revenue,"The Friends of St Laurence`s Church, Chorley",78276,,
Chorley Borough Council,http://statistics.data.gov.uk/id/local-authority/30UE,Central Support Services,1009,CUST - Customer & Digital,Computer - Support Services,40111,Communication and Computing,5028,"Total of 76.5 PS days required to support the below scope of works: Professional services Scope of works-	BoM Validation and Fibr",18/01/2023,0175340,"£2,275.00",Revenue,The Networking People (NorthWest) Ltd T/a TNP Ltd,73446,,
Chorley Borough Council,http://statistics.data.gov.uk/id/local-authority/30UE,Open Spaces,1038,CUST - Customer & Digital,Playground Equipment,40008,"Equipment, Furniture & Materia",5023,To inspect Astley Park and Rangletts Rec play areas,11/01/2023,0175173,£510.00,Revenue,The Play Inspection Company,20632,,
Chorley Borough Council,http://statistics.data.gov.uk/id/local-authority/30UE,Capital,Capital,GROW - Commercial & Property,Main Contractor,03007,Capital Expenditure,Capital,QS services for Astley Restoration Project,18/01/2023,0175221,"£2,600.00",Capital,Thornber and Walker Ltd,80557,,
Chorley Borough Council,http://statistics.data.gov.uk/id/local-authority/30UE,Capital,Capital,GROW - Commercial & Property,Main Contractor,03007,Capital Expenditure,Capital,QS services for Astley Restoration Project,18/01/2023,0175243,"£8,800.00",Capital,Thornber and Walker Ltd,80557,,
Chorley Borough Council,http://statistics.data.gov.uk/id/local-authority/30UE,Capital,Capital,GROW - Commercial & Property,Main Contractor,03007,Capital Expenditure,Capital,QS services for Astley Restoration Project,18/01/2023,0175260,"£2,925.00",Capital,Thornber and Walker Ltd,80557,,
Chorley Borough Council,http://statistics.data.gov.uk/id/local-authority/30UE,Central Support Services,1009,GROW - Commercial & Property,Misc Expenses,40200,Miscellaneous Expenses,5034,Provide lights at 2 x locations at Hoghton and pinfold. including install and dismantle in Jan 1 Tree and 1 Xmas tree. Lights as ,04/01/2023,0175047,£250.00,Revenue,Town Centre Trees,57436,,
Chorley Borough Council,http://statistics.data.gov.uk/id/local-authority/30UE,Service Management & Support,1009,CUST - Customer & Digital,Grounds Maintenance Contractor,20043,Grounds Maintenance Costs,5013,Abbey Village Play Area - Fell Ash,11/01/2023,0175174,£980.00,Revenue,Treescape North West Ltd,17688,,
Chorley Borough Council,http://statistics.data.gov.uk/id/local-authority/30UE,Service Management & Support,1009,CUST - Customer & Digital,Grounds Maintenance Contractor,20043,Grounds Maintenance Costs,5013,NAME REDACTED– Fell clump and dying Ash next to stream,11/01/2023,0175175,£840.00,Revenue,Treescape North West Ltd,17688,,
Chorley Borough Council,http://statistics.data.gov.uk/id/local-authority/30UE,Service Management & Support,1009,CUST - Customer & Digital,Grounds Maintenance Contractor,20043,Grounds Maintenance Costs,5013,Wilderswood – Pollard Ash and get fallen Ivy clad trees on to the ground,11/01/2023,0175176,£980.00,Revenue,Treescape North West Ltd,17688,,
Chorley Borough Council,http://statistics.data.gov.uk/id/local-authority/30UE,Service Management & Support,1009,CUST - Customer & Digital,Grounds Maintenance Contractor,20043,Grounds Maintenance Costs,5013,"NAME REDACTED – Remove fallen tree, Fell large Willow and smaller leaning willow",11/01/2023,0175214,£840.00,Revenue,Treescape North West Ltd,17688,,
Chorley Borough Council,http://statistics.data.gov.uk/id/local-authority/30UE,Service Management & Support,1009,CUST - Customer & Digital,Grounds Maintenance Contractor,20043,Grounds Maintenance Costs,5013,Invoice 0117,25/01/2023,0175125,£680.00,Revenue,Treexpert Tree Care,78580,,
Chorley Borough Council,http://statistics.data.gov.uk/id/local-authority/30UE,Service Management & Support,1009,CUST - Customer & Digital,Grounds Maintenance Contractor,20043,Grounds Maintenance Costs,5013,Invoice 0117,25/01/2023,0175125,£260.00,Revenue,Treexpert Tree Care,78580,,
Chorley Borough Council,http://statistics.data.gov.uk/id/local-authority/30UE,Business Support,1095,GOVN - Policy & Governance,Grants To Other Organisations,40127,Grants and Subscriptions,5031,Chorley BIG grant for job creation,25/01/2023,0175401,"£7,000.00",Revenue,Tunit,73455,,
Chorley Borough Council,http://statistics.data.gov.uk/id/local-authority/30UE,Other Short Term Debtors,,GOVN - Policy & Governance,Other Debtors,00098,Balance Sheet,Balance,Rental Finance,11/01/2023,0174451,£865.35,Revenue,Tuskerdirect Ltd,86967,,
Chorley Borough Council,http://statistics.data.gov.uk/id/local-authority/30UE,Other Short Term Debtors,,GOVN - Policy & Governance,Other Debtors,00098,Balance Sheet,Balance,Rental Insurance,11/01/2023,0174451,£138.40,Revenue,Tuskerdirect Ltd,86967,,
Chorley Borough Council,http://statistics.data.gov.uk/id/local-authority/30UE,Other Short Term Debtors,,GOVN - Policy & Governance,Other Debtors,00098,Balance Sheet,Balance,Rental Services,11/01/2023,0174451,£365.20,Revenue,Tuskerdirect Ltd,86967,,
Chorley Borough Council,http://statistics.data.gov.uk/id/local-authority/30UE,Other Short Term Debtors,,GOVN - Policy & Governance,Other Debtors,00098,Balance Sheet,Balance,Rental Finance,11/01/2023,0174452,£865.35,Revenue,Tuskerdirect Ltd,86967,,
Chorley Borough Council,http://statistics.data.gov.uk/id/local-authority/30UE,Other Short Term Debtors,,GOVN - Policy & Governance,Other Debtors,00098,Balance Sheet,Balance,Rental Insurance,11/01/2023,0174452,£138.40,Revenue,Tuskerdirect Ltd,86967,,
Chorley Borough Council,http://statistics.data.gov.uk/id/local-authority/30UE,Other Short Term Debtors,,GOVN - Policy & Governance,Other Debtors,00098,Balance Sheet,Balance,Rental Services,11/01/2023,0174452,£365.20,Revenue,Tuskerdirect Ltd,86967,,
Chorley Borough Council,http://statistics.data.gov.uk/id/local-authority/30UE,Other Short Term Debtors,,GOVN - Policy & Governance,Other Debtors,00098,Balance Sheet,Balance,Rental Finance,18/01/2023,0175143,£525.00,Revenue,Tuskerdirect Ltd,86967,,
Chorley Borough Council,http://statistics.data.gov.uk/id/local-authority/30UE,Other Short Term Debtors,,GOVN - Policy & Governance,Other Debtors,00098,Balance Sheet,Balance,Rental Insurance,18/01/2023,0175143,£88.03,Revenue,Tuskerdirect Ltd,86967,,
Chorley Borough Council,http://statistics.data.gov.uk/id/local-authority/30UE,Other Short Term Debtors,,GOVN - Policy & Governance,Other Debtors,00098,Balance Sheet,Balance,Rental Services,18/01/2023,0175143,£221.29,Revenue,Tuskerdirect Ltd,86967,,
Chorley Borough Council,http://statistics.data.gov.uk/id/local-authority/30UE,Other Short Term Debtors,,GOVN - Policy & Governance,Other Debtors,00098,Balance Sheet,Balance,Rental Finance,18/01/2023,0175144,£340.35,Revenue,Tuskerdirect Ltd,86967,,
Chorley Borough Council,http://statistics.data.gov.uk/id/local-authority/30UE,Other Short Term Debtors,,GOVN - Policy & Governance,Other Debtors,00098,Balance Sheet,Balance,Rental Insurance,18/01/2023,0175144,£50.37,Revenue,Tuskerdirect Ltd,86967,,
Chorley Borough Council,http://statistics.data.gov.uk/id/local-authority/30UE,Other Short Term Debtors,,GOVN - Policy & Governance,Other Debtors,00098,Balance Sheet,Balance,Rental Services,18/01/2023,0175144,£143.91,Revenue,Tuskerdirect Ltd,86967,,
Chorley Borough Council,http://statistics.data.gov.uk/id/local-authority/30UE,Central Support Services,1009,EARL - Communities,Grants To Other Organisations,40127,Grants and Subscriptions,5031,Digital Skills scheme delivery payment part 2 of 2. For the development and delivery of digital skills opportunities for Chorley ,04/01/2023,0174716,"£11,250.00",Revenue,UDevelop CIC,84423,,
Chorley Borough Council,http://statistics.data.gov.uk/id/local-authority/30UE,Central Support Services,1009,GOVN - Policy & Governance,Misc Expenses,40200,Miscellaneous Expenses,5034,01 january 2023,25/01/2023,0175413,"£1,412.20",Revenue,UK Healthcare (BDHSC),17241,,
Chorley Borough Council,http://statistics.data.gov.uk/id/local-authority/30UE,Central Support Services,1009,CUST - Customer & Digital,Postages,40082,Communication and Computing,5028,Daily Hybrid Mail & Annual Billing,04/01/2023,0174588,£429.99,Revenue,UKMAIL Ltd (Mail),57758,,
Chorley Borough Council,http://statistics.data.gov.uk/id/local-authority/30UE,Central Support Services,1009,CUST - Customer & Digital,Postages,40082,Communication and Computing,5028,Daily Hybrid Mail & Annual Billing,04/01/2023,0174751,"£2,022.92",Revenue,UKMAIL Ltd (Mail),57758,,
Chorley Borough Council,http://statistics.data.gov.uk/id/local-authority/30UE,Control Accounts,Control,GOVN - Policy & Governance,General Balances,00100,Balance Sheet,Balance,Unify - Dec 22 Monthly Deductions from payroll,04/01/2023,0174880,"£1,192.00",Revenue,Unify Credit Union Ltd,55509,,
Chorley Borough Council,http://statistics.data.gov.uk/id/local-authority/30UE,Homelessness,1075,EARL - Communities,Misc Expenses,40200,Miscellaneous Expenses,5034,ROOM HIRE AT ADDRESS REDACTED FOR ESOL CLASSES IN BYRON & MAIN HALLSDURING NOVEMBER 2022,11/01/2023,0175142,£300.00,Revenue,United Reformed Church,20885,,
Chorley Borough Council,http://statistics.data.gov.uk/id/local-authority/30UE,Capital,Capital,GROW - Commercial & Property,Main Contractor,03007,Capital Expenditure,Capital,Town Hall Server RoomSpecialist cleaning works ready for server installationvisit 1 - 16/09   £275 visit 2 - 21/09   £365 (rush o,25/01/2023,0174563,£640.00,Capital,Veida Contracting Ltd,86955,,
Chorley Borough Council,http://statistics.data.gov.uk/id/local-authority/30UE,Central Support Services,1009,GROW - Commercial & Property,General Repairs - Reactive,20004,Repairs Maintenance & Alts,5005,ADDRESS REDACTED Specialist deep clean of void flat,25/01/2023,0174838,£420.00,Revenue,Veida Contracting Ltd,86955,,
Chorley Borough Council,http://statistics.data.gov.uk/id/local-authority/30UE,Central Support Services,1009,GROW - Commercial & Property,General Repairs - Reactive,20004,Repairs Maintenance & Alts,5005,ADDRESS REDACTED Deep Clean to 2 Bedroom Bungalow inclusive of cleaning works following remedial works carried out.,25/01/2023,0174839,£395.00,Revenue,Veida Contracting Ltd,86955,,
Chorley Borough Council,http://statistics.data.gov.uk/id/local-authority/30UE,Central Support Services,1009,GROW - Commercial & Property,General Repairs - Reactive,20004,Repairs Maintenance & Alts,5005,Primrose Gardens ADDRESS REDACTED Deep Cleaning Works prior to New Tennant occupation.,25/01/2023,0174839,£375.00,Revenue,Veida Contracting Ltd,86955,,
Chorley Borough Council,http://statistics.data.gov.uk/id/local-authority/30UE,Homelessness,1075,GOVN - Policy & Governance,Tools & Equipment - Purchase,40003,"Equipment, Furniture & Materia",5023,support fund,18/01/2023,0175140,"£1,600.00",Revenue,Viktor Tyshchenko,87066,,
Chorley Borough Council,http://statistics.data.gov.uk/id/local-authority/30UE,Development Control,1091,PLAN - Planning & Development,Agency Staff,13000,Direct Employee Expenses,5001,Job: Contract work to assist with planning application processing Contractor: NAME REDACTED Time period: Until December 2022,25/01/2023,0174314,"£3,285.00",Revenue,Vivid Resourcing Ltd,76938,,
Chorley Borough Council,http://statistics.data.gov.uk/id/local-authority/30UE,Development Control,1091,PLAN - Planning & Development,Agency Staff,13000,Direct Employee Expenses,5001,Job: Contract work to assist with planning application processing Contractor: NAME REDACTED Time period: Until December 2022,25/01/2023,0174512,"£1,462.50",Revenue,Vivid Resourcing Ltd,76938,,
Chorley Borough Council,http://statistics.data.gov.uk/id/local-authority/30UE,Development Control,1091,PLAN - Planning & Development,Agency Staff,13000,Direct Employee Expenses,5001,Job: Contract work to assist with planning application processing  Contractor: NAME REDACTED  Time period: Until December 2022,25/01/2023,0174589,"£1,642.50",Revenue,Vivid Resourcing Ltd,76938,,
Chorley Borough Council,http://statistics.data.gov.uk/id/local-authority/30UE,Central Support Services,1009,GROW - Commercial & Property,Agency Staff,13000,Direct Employee Expenses,5001,Agency Fees for Estate Surveyor NAME REDACTED - 12mths,25/01/2023,0174795,£890.16,Revenue,Vivid Resourcing Ltd,76938,,
Chorley Borough Council,http://statistics.data.gov.uk/id/local-authority/30UE,Central Support Services,1009,GROW - Commercial & Property,Agency Staff,13000,Direct Employee Expenses,5001,Building surveyor fees,25/01/2023,0174796,"£1,369.29",Revenue,Vivid Resourcing Ltd,76938,,
Chorley Borough Council,http://statistics.data.gov.uk/id/local-authority/30UE,Central Support Services,1009,GROW - Commercial & Property,Agency Staff,13000,Direct Employee Expenses,5001,Building surveyor fees,25/01/2023,0174894,"£1,331.46",Revenue,Vivid Resourcing Ltd,76938,,
Chorley Borough Council,http://statistics.data.gov.uk/id/local-authority/30UE,Central Support Services,1009,GROW - Commercial & Property,Agency Staff,13000,Direct Employee Expenses,5001,Building surveyor fees,25/01/2023,0174895,"£1,549.86",Revenue,Vivid Resourcing Ltd,76938,,
Chorley Borough Council,http://statistics.data.gov.uk/id/local-authority/30UE,Central Support Services,1009,GROW - Commercial & Property,Agency Staff,13000,Direct Employee Expenses,5001,Agency Fees for Estate Surveyor NAME REDACTED - 12mths,25/01/2023,0174909,"£1,230.24",Revenue,Vivid Resourcing Ltd,76938,,
Chorley Borough Council,http://statistics.data.gov.uk/id/local-authority/30UE,Central Support Services,1009,GROW - Commercial & Property,Agency Staff,13000,Direct Employee Expenses,5001,Agency Fees for Estate Surveyor NAME REDACTED - 12mths,25/01/2023,0174910,£925.68,Revenue,Vivid Resourcing Ltd,76938,,
Chorley Borough Council,http://statistics.data.gov.uk/id/local-authority/30UE,Economic Development,1096,GROW - Commercial & Property,Agency Staff,13000,Direct Employee Expenses,5001,"NAME REDACTED
Start 12.09.2022 for 6months",25/01/2023,0174911,"£2,337.50",Revenue,Vivid Resourcing Ltd,76938,,
Chorley Borough Council,http://statistics.data.gov.uk/id/local-authority/30UE,Economic Development,1096,GROW - Commercial & Property,Agency Staff,13000,Direct Employee Expenses,5001,"NAME REDACTED
Start 12.09.2022 for 6months",25/01/2023,0174912,"£2,351.25",Revenue,Vivid Resourcing Ltd,76938,,
Chorley Borough Council,http://statistics.data.gov.uk/id/local-authority/30UE,Development Control,1091,PLAN - Planning & Development,Agency Staff,13000,Direct Employee Expenses,5001,Job: Contract work to assist with planning application processing Contractor:NAME REDACTED Time period: Until December 2022,11/01/2023,0174938,"£1,507.50",Revenue,Vivid Resourcing Ltd,76938,,
Chorley Borough Council,http://statistics.data.gov.uk/id/local-authority/30UE,Central Support Services,1009,EARL - Communities,External Contractor,40198,Miscellaneous Expenses,5034,NAME REDACTED Contractors,18/01/2023,0174940,£993.00,Revenue,Vivid Resourcing Ltd,76938,,
Chorley Borough Council,http://statistics.data.gov.uk/id/local-authority/30UE,Central Support Services,1009,EARL - Communities,External Contractor,40198,Miscellaneous Expenses,5034,NAME REDACTED Contractors,18/01/2023,0174966,"£1,073.36",Revenue,Vivid Resourcing Ltd,76938,,
Chorley Borough Council,http://statistics.data.gov.uk/id/local-authority/30UE,Development Control,1091,PLAN - Planning & Development,Agency Staff,13000,Direct Employee Expenses,5001,Job: Contract work to assist with planning application processing  Contractor: NAME REDACTED  Time period: Until December 2022,25/01/2023,0175102,"£1,575.00",Revenue,Vivid Resourcing Ltd,76938,,
Chorley Borough Council,http://statistics.data.gov.uk/id/local-authority/30UE,Central Support Services,1009,EARL - Communities,External Contractor,40198,Miscellaneous Expenses,5034,NAME REDACTED Contractors,18/01/2023,0175138,£993.00,Revenue,Vivid Resourcing Ltd,76938,,
Chorley Borough Council,http://statistics.data.gov.uk/id/local-authority/30UE,Central Support Services,1009,EARL - Communities,Agency Staff,13000,Direct Employee Expenses,5001,NAME REDACTED contractors as requested by NAME REDACTED,25/01/2023,0175139,"£1,221.41",Revenue,Vivid Resourcing Ltd,76938,,
Chorley Borough Council,http://statistics.data.gov.uk/id/local-authority/30UE,Development Control,1091,PLAN - Planning & Development,Agency Staff,13000,Direct Employee Expenses,5001,Job: Contract work to assist with planning application processing Contractor: NAME REDACTED Time period: Until December 2022,18/01/2023,0175167,"£1,642.50",Revenue,Vivid Resourcing Ltd,76938,,
Chorley Borough Council,http://statistics.data.gov.uk/id/local-authority/30UE,Central Support Services,1009,EARL - Communities,External Contractor,40198,Miscellaneous Expenses,5034,NAME REDACTED Contractors,18/01/2023,0175202,"£1,159.73",Revenue,Vivid Resourcing Ltd,76938,,
Chorley Borough Council,http://statistics.data.gov.uk/id/local-authority/30UE,Central Support Services,1009,EARL - Communities,External Contractor,40198,Miscellaneous Expenses,5034,NAME REDACTED Contractors,18/01/2023,0175203,£993.00,Revenue,Vivid Resourcing Ltd,76938,,
Chorley Borough Council,http://statistics.data.gov.uk/id/local-authority/30UE,Development Control,1091,PLAN - Planning & Development,Agency Staff,13000,Direct Employee Expenses,5001,Job: Contract work to assist with planning application processing Contractor: NAME REDACTED Time period: Until December 2022,25/01/2023,0175253,"£1,642.50",Revenue,Vivid Resourcing Ltd,76938,,
Chorley Borough Council,http://statistics.data.gov.uk/id/local-authority/30UE,Central Support Services,1009,EARL - Communities,Agency Staff,13000,Direct Employee Expenses,5001,NAME REDACTED contractors as requested by NAME REDACTED,25/01/2023,0175290,£993.00,Revenue,Vivid Resourcing Ltd,76938,,
Chorley Borough Council,http://statistics.data.gov.uk/id/local-authority/30UE,Development Control,1091,PLAN - Planning & Development,Agency Staff,13000,Direct Employee Expenses,5001,Job: Contract work to assist with planning application processing Contractor: NAME REDACTED Time period: Until December 2022,25/01/2023,0175366,£652.50,Revenue,Vivid Resourcing Ltd,76938,,
Chorley Borough Council,http://statistics.data.gov.uk/id/local-authority/30UE,Economic Development,1096,GROW - Commercial & Property,Agency Staff,13000,Direct Employee Expenses,5001,NAME REDACTED Start 12.09.2022 for 6months,25/01/2023,0175475,"£4,331.25",Revenue,Vivid Resourcing Ltd,76938,,
Chorley Borough Council,http://statistics.data.gov.uk/id/local-authority/30UE,Central Support Services,1009,GROW - Commercial & Property,Agency Staff,13000,Direct Employee Expenses,5001,Agency Fees for Estate Surveyor NAME REDACTED - 12mths,25/01/2023,0175476,£861.84,Revenue,Vivid Resourcing Ltd,76938,,
Chorley Borough Council,http://statistics.data.gov.uk/id/local-authority/30UE,Central Support Services,1009,GROW - Commercial & Property,Agency Staff,13000,Direct Employee Expenses,5001,Building surveyor fees,25/01/2023,0175477,"£3,014.70",Revenue,Vivid Resourcing Ltd,76938,,
Chorley Borough Council,http://statistics.data.gov.uk/id/local-authority/30UE,Central Support Services,1009,CUST - Customer & Digital,Computer Equipment-Maintenance,40105,Communication and Computing,5028,Chorley Committee Room 1 Hybrid and Streaming System Bosch Wireless Conference System - £14385 Camera System for TEAMS and Stream,25/01/2023,0175166,"£28,461.25",Revenue,VP-AV Ltd,81653,,
Chorley Borough Council,http://statistics.data.gov.uk/id/local-authority/30UE,Capital,Capital,GROW - Commercial & Property,Other Capital Related Fees,03024,Capital Expenditure,Capital,ADDRESS REDACTED Post purchase renovation works New smoke and CO2 detectors and replacement light fitting,04/01/2023,0174787,£391.69,Capital,Walker Gabbott Electrical Ltd,83932,,
Chorley Borough Council,http://statistics.data.gov.uk/id/local-authority/30UE,Capital,Capital,PLAN - Planning & Development,Main Contractor,03007,Capital Expenditure,Capital,Completion of contract works in 2021 - 2022 Financial Year,11/01/2023,0175017,"£19,647.66",Capital,Walter Carefoot Construction (Ltd),80601,,
Chorley Borough Council,http://statistics.data.gov.uk/id/local-authority/30UE,Business Support,1095,GROW - Commercial & Property,Water - Metered Supplies,20022,Water Services,5009,Strawberry fields digital hub,18/01/2023,0175309,£962.46,Revenue,WaterPlus 6002259172 The Strawberry Fields,86926,,
Chorley Borough Council,http://statistics.data.gov.uk/id/local-authority/30UE,Capital,Capital,GROW - Commercial & Property,Other Legal Fees,03020,Capital Expenditure,Capital,"Professional Fees - Tatton Gardens Project , Chorley",11/01/2023,0175083,"£3,500.00",Capital,Weightmans LLP,22212,,
Chorley Borough Council,http://statistics.data.gov.uk/id/local-authority/30UE,Central Support Services,1009,GOVN - Policy & Governance,Postages,40082,Communication and Computing,5028,Weekly collection of mail from Union Street,25/01/2023,0175301,£429.70,Revenue,Whistl North Limited,67256,,
Chorley Borough Council,http://statistics.data.gov.uk/id/local-authority/30UE,Democratic Represent and  Mgnt,1007,GOVN - Policy & Governance,Grants To Other Organisations,40127,Grants and Subscriptions,5031,funding,11/01/2023,0175137,£300.00,Revenue,Withnell st Pauls Scout Group,76612,,
Chorley Borough Council,http://statistics.data.gov.uk/id/local-authority/30UE,Central Support Services,1009,GROW - Commercial & Property,General Repairs - Reactive,20004,Repairs Maintenance & Alts,5005,Babylon Lane Toilets New shutter - QU-770 To attend site and strip out the old manual shutter and dipose of properly.,11/01/2023,0175114,"£2,240.00",Revenue,Yates Entrance Solutions Ltd,84714,,
